{"text_format":"1","workbook":"xlsx","n_sheets":19,"sheets":["TOP","0","hed","hed_mac","1","2","3","4","5","6","7","8","9","10","11","12","Entry","tmp","Sheet1"],"not_rendered":{"charts":0,"images":0,"macros":1,"external_links":0,"defined_names":2,"comments":1,"pivot_tables":0},"unopened":[],"bounds":{"document_bytes":16777216,"sheet_cells":100000,"rows_first":2000,"rows_last":500,"rows_between":2000,"halvings":0,"cell_chars":16384,"cell_head_chars":4096},"cells_cut":0,"cells_raw":0,"read":"whole","date_system":"1900"}

{"sheet":"TOP","index":0,"n_rows":24,"n_cols":23,"rows_kept":24,"cut":false,"hidden":true,"merged":[[23,1,24,23],[1,1,2,20]]}
[null,"p"]
[null,"動物実験に関する自己点検・評価報告書作成ツール（評価者用）"]
[]
[]
[null,null,"Ⅰ．","機関・組織情報"]
[]
[null,null,null,null,null,null,null,null,null,null,0,{"$f":"IF(INDIRECT(K7&\"!v1\")=\"\",\"\",IF(INDIRECT(K7&\"!v1\")=1,\"済\",\"該当無\"))","v":""}]
[]
[null,null,"Ⅱ．","自己点検シート（メニュー）"]
[]
[null,null,null,null,null,null,null,null,null,null,1,{"$f":"IF(INDIRECT(K11&\"!v1\")=\"\",\"\",IF(INDIRECT(K11&\"!v1\")=1,\"済\",\"該当無\"))","v":""},null,null,null,null,null,null,null,null,null,7,{"$f":"IF(INDIRECT(V11&\"!v1\")=\"\",\"\",IF(INDIRECT(V11&\"!v1\")=1,\"済\",\"該当無\"))","v":""}]
[]
[null,null,null,null,null,null,null,null,null,null,2,{"$f":"IF(INDIRECT(K13&\"!v1\")=\"\",\"\",IF(INDIRECT(K13&\"!v1\")=1,\"済\",\"該当無\"))","v":""},null,null,null,null,null,null,null,null,null,8,{"$f":"IF(INDIRECT(V13&\"!v1\")=\"\",\"\",IF(INDIRECT(V13&\"!v1\")=1,\"済\",\"該当無\"))","v":""}]
[]
[null,null,null,null,null,null,null,null,null,null,3,{"$f":"IF(INDIRECT(K15&\"!v1\")=\"\",\"\",IF(INDIRECT(K15&\"!v1\")=1,\"済\",\"該当無\"))","v":""},null,null,null,null,null,null,null,null,null,9,{"$f":"IF(INDIRECT(V15&\"!v1\")=\"\",\"\",IF(INDIRECT(V15&\"!v1\")=1,\"済\",\"該当無\"))","v":""}]
[]
[null,null,null,null,null,null,null,null,null,null,4,{"$f":"IF(INDIRECT(K17&\"!v1\")=\"\",\"\",IF(INDIRECT(K17&\"!v1\")=1,\"済\",\"該当無\"))","v":""},null,null,null,null,null,null,null,null,null,10,{"$f":"IF(INDIRECT(V17&\"!v1\")=\"\",\"\",IF(INDIRECT(V17&\"!v1\")=1,\"済\",\"該当無\"))","v":""}]
[]
[null,null,null,null,null,null,null,null,null,null,5,{"$f":"IF(INDIRECT(K19&\"!v1\")=\"\",\"\",IF(INDIRECT(K19&\"!v1\")=1,\"済\",\"該当無\"))","v":""},null,null,null,null,null,null,null,null,null,11,{"$f":"IF(INDIRECT(V19&\"!v1\")=\"\",\"\",IF(INDIRECT(V19&\"!v1\")=1,\"済\",\"該当無\"))","v":""}]
[]
[null,null,null,null,null,null,null,null,null,null,6,{"$f":"IF(INDIRECT(K21&\"!v1\")=\"\",\"\",IF(INDIRECT(K21&\"!v1\")=1,\"済\",\"該当無\"))","v":""},null,null,null,null,null,null,null,null,null,12,{"$f":"IF(INDIRECT(V21&\"!v1\")=\"\",\"\",IF(INDIRECT(V21&\"!v1\")=1,\"済\",\"該当無\"))","v":""}]
[]
[]
[null,"厚生労働科学特別研究事業"]

{"sheet":"0","index":1,"n_rows":26,"n_cols":16,"rows_kept":26,"cut":false,"hidden":true,"merged":[[15,9,15,22],[4,1,4,7],[4,8,4,22],[6,9,6,10],[8,9,8,10],[11,9,11,22],[25,9,25,10],[24,1,24,7],[24,8,24,22],[17,9,17,22],[19,9,19,22],[21,9,21,22]]}
[null,"機関・組織情報"]
[]
[null,null,null,null,{"$f":"IF(V1=2,\"（該当無し）\",\"\")","v":""}]
[]
[null,"項　　目",null,null,null,null,null,null,"　　情　報　入　力"]
[]
[null,"作成日",null,null,null,null,null,null,null,null,null,"年",null,"月",null,"日"]
[]
[null,"事業年度",null,null,null,null,null,null,null,null,null,"年度"]
[]
[]
[null,"機関・組織・会社名"]
[]
[null,"作成者"]
[]
[null,null,"所属名　（部署名）"]
[]
[null,null,"役職"]
[]
[null,null,"名前"]
[]
[null,null,"URL"]
[]
[]
[]
[null,"表示画面倍率",null,null,null,null,null,null,null,100,null,null,null,null,"（標準は100です。）"]

{"sheet":"hed","index":2,"n_rows":40,"n_cols":1,"rows_kept":40,"cut":false,"hidden":true,"merged":[[8,0,8,23],[6,0,6,23],[39,0,39,23]]}
[]
[]
[]
[]
[]
[]
["動物実験に関する自己点検・評価報告書"]
[]
[{"$f":"'0'!J9&\" 年度\"","v":" 年度"}]
[]
[]
[]
[]
[]
[]
[]
[]
[]
[]
[]
[]
[]
[]
[]
[]
[]
[]
[]
[]
[]
[]
[]
[]
[]
[]
[]
[]
[]
[]
[{"$f":"IF('0'!J12<>\"\",'0'!J12,\"\")","v":""}]

{"sheet":"hed_mac","index":3,"n_rows":33,"n_cols":1,"rows_kept":33,"cut":false,"hidden":true,"merged":[[5,0,5,17],[7,0,7,17],[32,0,32,17]]}
[]
[]
[]
[]
[]
["動物実験に関する自己点検・評価報告書"]
[]
[{"$f":"'0'!J9&\" 年度\"","v":" 年度"}]
[]
[]
[]
[]
[]
[]
[]
[]
[]
[]
[]
[]
[]
[]
[]
[]
[]
[]
[]
[]
[]
[]
[]
[]
[{"$f":"IF('0'!J12<>\"\",'0'!J12,\"\")","v":""}]

{"sheet":"1","index":4,"n_rows":33,"n_cols":33,"rows_kept":33,"cut":false,"hidden":true,"merged":[[29,5,29,22],[14,5,14,22],[17,5,17,22],[21,5,21,22],[24,5,24,22]]}
[null,"　１． 組織・体制の整備",null,null,null,null,null,null,null,null,null,null,1,22,6]
[]
[null,null,null,null,{"$f":"IF(V1=2,\"（該当無し）\",\"\")","v":""},null,null,null,null,null,null,null,null,null,null,null,null,null,null,null,null,null,null,null,null,"op","chb","opB","opB","opB",null,null,"ans"]
[]
[null,"実施機関の長が明確であるか？（厚労省基本指針第2.1）"]
[]
[null,null,null,null,null,"はい",null,null,"一部改善すべき点がある",null,null,null,null,null,null,null,"いいえ",null,null,null,null,null,null,null,null,2,null,1,2,3]
[]
["hide",null,null,null,"検証の結果"]
["hide",null,null,null,null,"はい",null,null,"一部改善すべき点がある",null,null,null,null,null,null,null,"いいえ",null,null,null,null,null,null,null,null,2,null,4,5,6]
["hide"]
["hide"]
[null,null,"実施機関の長の役職・氏名"]
[null,null,null,null,"役職"]
[null,"実施機関の長の役職・氏名","役職",null,null,null,null,null,null,null,null,null,null,null,null,null,null,null,null,null,null,null,null,null,null,3]
[]
[null,null,null,null,"氏名"]
[null,"実施機関の長の役職・氏名","氏名",null,"ipp",null,null,null,null,null,null,null,null,null,null,null,null,null,null,null,null,null,null,null,null,3]
[]
[]
[null,null,null,null,"根拠となる資料及び条項等"]
[null,"実施機関の長が明確であるか？（厚労省基本指針第2.1）","根拠となる資料及び条項等",null,null,null,null,null,null,null,null,null,null,null,null,null,null,null,null,null,null,null,null,null,null,3]
[]
[null,null,null,null,"判断理由、改善の見通し"]
[null,"実施機関の長が明確であるか？（厚労省基本指針第2.1）","判断理由、改善の見通し",null,null,null,null,null,null,null,null,null,null,null,null,null,null,null,null,null,null,null,null,null,null,3]
[]
[]
[]
["hide",null,null,null,"改善に向けた意見"]
["hide",{"$f":"B1&\"　総括\"","v":"　１． 組織・体制の整備　総括"},{"$f":"E29","v":"改善に向けた意見"},null,"mes",null,null,null,null,null,null,null,null,null,null,null,null,null,null,null,null,null,null,null,null,3]
["hide"]
[]
[null,null,null,null,null,null,null,null,null,null,null,null,null,null,null,null,null,null,null,null,null,null,null,null,null,"e"]

{"sheet":"2","index":5,"n_rows":170,"n_cols":33,"rows_kept":170,"cut":false,"hidden":true,"merged":[[161,5,161,22],[166,5,166,22],[19,5,19,22],[28,5,28,22],[146,5,146,22],[149,5,149,22]]}
[null,"　２． 機関内規程"]
[]
[null,null,null,null,null,{"$f":"IF(V1=2,\"（該当無し）\",\"\")","v":""},null,null,null,null,null,null,null,null,null,null,null,null,null,null,null,null,null,null,null,"op","chb","opB","opB","opB",null,null,"ans"]
[]
[null,"（１）",null,null,"「動物実験等の施設等の整備及び管理の方法」および「動物実験等の具体的な実施方法」を"]
[null,null,null,null,"定めた機関内規程が策定されているか？（厚労省基本指針第2.2）"]
[]
[null,null,null,null,null,"はい",null,null,"一部改善すべき点がある",null,null,null,null,null,null,null,"いいえ",null,null,null,null,null,null,null,null,2,null,157,158,159]
[]
["hide",null,null,null,"検証の結果"]
["hide",null,null,null,null,"はい",null,null,"一部改善すべき点がある",null,null,null,null,null,null,null,"いいえ",null,null,null,null,null,null,null,null,2,null,4,5,6]
["hide"]
["hide"]
[null,null,null,null,"機関内規程を策定する際に踏まえた法令および指針等："]
[null,null,null,null,null,"動物の愛護及び管理に関する法律",null,null,null,null,null,null,null,null,null,null,null,null,null,null,null,null,null,null,null,1,54,null,null,null,null,null,false]
[null,null,null,null,null,"実験動物の飼養及び保管並びに苦痛の軽減に関する基準　　　",null,null,null,null,null,null,null,null,null,null,null,null,null,null,null,null,null,null,null,1,55,null,null,null,null,null,false]
[null,null,null,null,null,"厚労省の所管する実施機関における動物実験等の実施に関する基本指針",null,null,null,null,null,null,null,null,null,null,null,null,null,null,null,null,null,null,null,1,56,null,null,null,null,null,false]
[null,null,null,null,null,"動物実験の適正な実施に向けたガイドライン（日本学術会議）",null,null,null,null,null,null,null,null,null,null,null,null,null,null,null,null,null,null,null,1,57,null,null,null,null,null,false]
[null,null,null,null,null,"その他",null,null,null,null,null,null,null,null,null,null,null,null,null,null,null,null,null,null,null,1,58,null,null,null,null,null,false]
[null,"機関内規程を策定する際に踏まえた法令および指針等：","その他",null,null,null,null,null,null,null,null,null,null,null,null,null,null,null,null,null,null,null,null,null,null,3]
[]
["hide",null,null,null,"検証の結果"]
["hide",null,null,null,"機関内規程を策定する際に踏まえた法令および指針等："]
["hide",null,null,142,null,"動物の愛護及び管理に関する法律",null,null,null,null,null,null,null,null,null,null,null,null,null,null,null,null,null,null,null,1,142,null,null,null,null,null,false]
["hide",null,null,143,null,"実験動物の飼養及び保管並びに苦痛の軽減に関する基準　　　",null,null,null,null,null,null,null,null,null,null,null,null,null,null,null,null,null,null,null,1,143,null,null,null,null,null,false]
["hide",null,null,144,null,"厚労省の所管する実施機関における動物実験等の実施に関する基本指針",null,null,null,null,null,null,null,null,null,null,null,null,null,null,null,null,null,null,null,1,144,null,null,null,null,null,false]
["hide",null,null,145,null,"動物実験の適正な実施に向けたガイドライン（日本学術会議）",null,null,null,null,null,null,null,null,null,null,null,null,null,null,null,null,null,null,null,1,145,null,null,null,null,null,false]
["hide",null,null,146,null,"その他",null,null,null,null,null,null,null,null,null,null,null,null,null,null,null,null,null,null,null,1,146,null,null,null,null,null,false]
["hide","機関内規程を策定する際に踏まえた法令および指針等：","その他",null,null,null,null,null,null,null,null,null,null,null,null,null,null,null,null,null,null,null,null,null,null,3]
["hide"]
[null,null,null,null,"機関内規程に含まれる項目："]
[null,null,null,null,"① 総則に関する項目"]
[null,null,null,null,null,"趣旨および基本原則、あるいは目的",null,null,null,null,null,null,null,null,null,null,null,null,null,null,null,null,null,null,null,1,59,null,null,null,null,null,false]
[null,null,null,null,null,"用語の定義　",null,null,null,null,null,null,null,null,null,null,null,null,null,null,null,null,null,null,null,1,60,null,null,null,null,null,false]
[null,null,null,null,null,"適用範囲",null,null,null,null,null,null,null,null,null,null,null,null,null,null,null,null,null,null,null,1,61,null,null,null,null,null,false]
[]
["hide",null,null,null,"検証の結果"]
["hide",null,null,null,"① 総則に関する項目"]
["hide",null,null,90,null,"趣旨および基本原則、あるいは目的",null,null,null,null,null,null,null,null,null,null,null,null,null,null,null,null,null,null,null,1,90,null,null,null,null,null,false]
["hide",null,null,91,null,"用語の定義　",null,null,null,null,null,null,null,null,null,null,null,null,null,null,null,null,null,null,null,1,91,null,null,null,null,null,false]
["hide",null,null,92,null,"適用範囲",null,null,null,null,null,null,null,null,null,null,null,null,null,null,null,null,null,null,null,1,92,null,null,null,null,null,false]
["hide"]
[null,null,null,null,"② 実施機関の長の責務に関する項目"]
[null,null,null,null,null,"機関内規程の策定",null,null,null,null,null,null,null,null,null,null,null,null,null,null,null,null,null,null,null,1,63,null,null,null,null,null,false]
[null,null,null,null,null,"動物実験委員会の設置",null,null,null,null,null,null,null,null,null,null,null,null,null,null,null,null,null,null,null,1,64,null,null,null,null,null,false]
[null,null,null,null,null,"動物実験計画書の承認",null,null,null,null,null,null,null,null,null,null,null,null,null,null,null,null,null,null,null,1,65,null,null,null,null,null,false]
[null,null,null,null,null,"動物実験計画の実施結果の把握",null,null,null,null,null,null,null,null,null,null,null,null,null,null,null,null,null,null,null,1,66,null,null,null,null,null,false]
[null,null,null,null,null,"教育訓練の実施",null,null,null,null,null,null,null,null,null,null,null,null,null,null,null,null,null,null,null,1,67,null,null,null,null,null,false]
[null,null,null,null,null,"自己点検及び評価",null,null,null,null,null,null,null,null,null,null,null,null,null,null,null,null,null,null,null,1,68,null,null,null,null,null,false]
[null,null,null,null,null,"外部の者による検証",null,null,null,null,null,null,null,null,null,null,null,null,null,null,null,null,null,null,null,1,69,null,null,null,null,null,false]
[null,null,null,null,null,"動物実験等に関する情報公開 ",null,null,null,null,null,null,null,null,null,null,null,null,null,null,null,null,null,null,null,1,70,null,null,null,null,null,false]
[]
["hide",null,null,null,"検証の結果"]
["hide",null,null,null,"② 実施機関の長の責務に関する項目"]
["hide",null,null,101,null,"機関内規程の策定",null,null,null,null,null,null,null,null,null,null,null,null,null,null,null,null,null,null,null,1,101,null,null,null,null,null,false]
["hide",null,null,102,null,"動物実験委員会の設置",null,null,null,null,null,null,null,null,null,null,null,null,null,null,null,null,null,null,null,1,102,null,null,null,null,null,false]
["hide",null,null,103,null,"動物実験計画書の承認",null,null,null,null,null,null,null,null,null,null,null,null,null,null,null,null,null,null,null,1,103,null,null,null,null,null,false]
["hide",null,null,104,null,"動物実験計画の実施結果の把握",null,null,null,null,null,null,null,null,null,null,null,null,null,null,null,null,null,null,null,1,104,null,null,null,null,null,false]
["hide",null,null,105,null,"教育訓練の実施",null,null,null,null,null,null,null,null,null,null,null,null,null,null,null,null,null,null,null,1,105,null,null,null,null,null,false]
["hide",null,null,106,null,"自己点検及び評価",null,null,null,null,null,null,null,null,null,null,null,null,null,null,null,null,null,null,null,1,106,null,null,null,null,null,false]
["hide",null,null,107,null,"外部の者による検証",null,null,null,null,null,null,null,null,null,null,null,null,null,null,null,null,null,null,null,1,107,null,null,null,null,null,false]
["hide",null,null,108,null,"動物実験等に関する情報公開 ",null,null,null,null,null,null,null,null,null,null,null,null,null,null,null,null,null,null,null,1,108,null,null,null,null,null,false]
["hide"]
[null,null,null,null,"③ 動物実験委員会の役割に関する項目"]
[null,null,null,null,null,"動物実験計画の審査 ",null,null,null,null,null,null,null,null,null,null,null,null,null,null,null,null,null,null,null,1,71,null,null,null,null,null,false]
[null,null,null,null,null,"動物実験計画の実施結果に関する助言",null,null,null,null,null,null,null,null,null,null,null,null,null,null,null,null,null,null,null,1,72,null,null,null,null,null,false]
[]
["hide",null,null,null,"検証の結果"]
["hide",null,null,null,"③ 動物実験委員会の役割に関する項目"]
["hide",null,null,109,null,"動物実験計画の審査 ",null,null,null,null,null,null,null,null,null,null,null,null,null,null,null,null,null,null,null,1,109,null,null,null,null,null,false]
["hide",null,null,110,null,"動物実験計画の実施結果に関する助言",null,null,null,null,null,null,null,null,null,null,null,null,null,null,null,null,null,null,null,1,110,null,null,null,null,null,false]
["hide"]
[null,null,null,null,"④ 動物実験委員会の構成に関する項目"]
[null,null,null,null,null,"動物実験に関して優れた識見を有する者（動物実験の専門家）",null,null,null,null,null,null,null,null,null,null,null,null,null,null,null,null,null,null,null,1,73,null,null,null,null,null,false]
[null,null,null,null,null,"実験動物に関して優れた識見を有する者（実験動物の専門家）",null,null,null,null,null,null,null,null,null,null,null,null,null,null,null,null,null,null,null,1,74,null,null,null,null,null,false]
[null,null,null,null,null,"その他学識経験を有する者（上記専門家以外の学識経験者）",null,null,null,null,null,null,null,null,null,null,null,null,null,null,null,null,null,null,null,1,75,null,null,null,null,null,false]
[]
["hide",null,null,null,"検証の結果"]
["hide",null,null,null,"④ 動物実験委員会の構成に関する項目"]
["hide",null,null,111,null,"動物実験に関して優れた識見を有する者（動物実験の専門家）",null,null,null,null,null,null,null,null,null,null,null,null,null,null,null,null,null,null,null,1,111,null,null,null,null,null,false]
["hide",null,null,112,null,"実験動物に関して優れた識見を有する者（実験動物の専門家）",null,null,null,null,null,null,null,null,null,null,null,null,null,null,null,null,null,null,null,1,112,null,null,null,null,null,false]
["hide",null,null,113,null,"その他学識経験を有する者（上記専門家以外の学識経験者）",null,null,null,null,null,null,null,null,null,null,null,null,null,null,null,null,null,null,null,1,113,null,null,null,null,null,false]
["hide"]
[null,null,null,null,"⑤ 実験動物の飼養及び保管に関する項目"]
[null,null,null,null,null,"マニュアル（標準操作手順）の作成と周知 ",null,null,null,null,null,null,null,null,null,null,null,null,null,null,null,null,null,null,null,1,76,null,null,null,null,null,false]
[null,null,null,null,null,"飼養保管施設の設置要件",null,null,null,null,null,null,null,null,null,null,null,null,null,null,null,null,null,null,null,1,77,null,null,null,null,null,false]
[]
["hide",null,null,null,"検証の結果"]
["hide",null,null,null,"⑤ 実験動物の飼養及び保管に関する項目"]
["hide",null,null,114,null,"マニュアル（標準操作手順）の作成と周知 ",null,null,null,null,null,null,null,null,null,null,null,null,null,null,null,null,null,null,null,1,114,null,null,null,null,null,false]
["hide",null,null,115,null,"飼養保管施設の設置要件",null,null,null,null,null,null,null,null,null,null,null,null,null,null,null,null,null,null,null,1,115,null,null,null,null,null,false]
["hide"]
[null,null,null,null,"⑥ 動物実験等の実施上の配慮に関する項目"]
[null,null,null,null,null,"動物実験計画書の立案",null,null,null,null,null,null,null,null,null,null,null,null,null,null,null,null,null,null,null,1,78,null,null,null,null,null,false]
[null,null,null,null,null,"適正な動物実験等の方法の選択 ",null,null,null,null,null,null,null,null,null,null,null,null,null,null,null,null,null,null,null,1,79,null,null,null,null,null,false]
[null,null,null,null,null,"苦痛の軽減",null,null,null,null,null,null,null,null,null,null,null,null,null,null,null,null,null,null,null,1,80,null,null,null,null,null,false]
[]
["hide",null,null,null,"検証の結果"]
["hide",null,null,null,"⑥ 動物実験等の実施上の配慮に関する項目"]
["hide",null,null,116,null,"動物実験計画書の立案",null,null,null,null,null,null,null,null,null,null,null,null,null,null,null,null,null,null,null,1,116,null,null,null,null,null,false]
["hide",null,null,117,null,"適正な動物実験等の方法の選択 ",null,null,null,null,null,null,null,null,null,null,null,null,null,null,null,null,null,null,null,1,117,null,null,null,null,null,false]
["hide",null,null,118,null,"苦痛の軽減",null,null,null,null,null,null,null,null,null,null,null,null,null,null,null,null,null,null,null,1,118,null,null,null,null,null,false]
["hide"]
[null,null,null,null,"⑦ 安全管理に関する項目"]
[null,null,null,null,null,"危害防止",null,null,null,null,null,null,null,null,null,null,null,null,null,null,null,null,null,null,null,1,80,null,null,null,null,null,false]
[null,null,null,null,null,"緊急時の対応",null,null,null,null,null,null,null,null,null,null,null,null,null,null,null,null,null,null,null,1,81,null,null,null,null,null,false]
[]
["hide",null,null,null,"検証の結果"]
["hide",null,null,null,"⑦ 安全管理に関する項目"]
["hide",null,null,119,null,"危害防止",null,null,null,null,null,null,null,null,null,null,null,null,null,null,null,null,null,null,null,1,119,null,null,null,null,null,false]
["hide",null,null,120,null,"緊急時の対応",null,null,null,null,null,null,null,null,null,null,null,null,null,null,null,null,null,null,null,1,120,null,null,null,null,null,false]
["hide"]
[null,null,null,null,"⑧ 教育訓練に関する項目"]
[null,null,null,null,null,"教育訓練の実施者及び対象者",null,null,null,null,null,null,null,null,null,null,null,null,null,null,null,null,null,null,null,1,83,null,null,null,null,null,false]
[null,null,null,null,null,"教育訓練の内容",null,null,null,null,null,null,null,null,null,null,null,null,null,null,null,null,null,null,null,1,84,null,null,null,null,null,false]
[]
["hide",null,null,null,"検証の結果"]
["hide",null,null,null,"⑧ 教育訓練に関する項目"]
["hide",null,null,121,null,"教育訓練の実施者及び対象者",null,null,null,null,null,null,null,null,null,null,null,null,null,null,null,null,null,null,null,1,121,null,null,null,null,null,false]
["hide",null,null,122,null,"教育訓練の内容",null,null,null,null,null,null,null,null,null,null,null,null,null,null,null,null,null,null,null,1,122,null,null,null,null,null,false]
["hide"]
[null,null,null,null,"⑨ ",null,"自己点検及び評価に関する項目",null,null,null,null,null,null,null,null,null,null,null,null,null,null,null,null,null,null,1,85,null,null,null,null,null,false]
[]
["hide",null,null,null,"検証の結果"]
["hide",null,null,128,"⑨ ",null,"自己点検及び評価に関する項目",null,null,null,null,null,null,null,null,null,null,null,null,null,null,null,null,null,null,1,128,null,null,null,null,null,false]
["hide"]
[null,null,null,null,"⑩ ",null,"外部の者による検証に関する項目",null,null,null,null,null,null,null,null,null,null,null,null,null,null,null,null,null,null,1,86,null,null,null,null,null,false]
[]
["hide",null,null,null,"検証の結果"]
["hide",null,null,129,"⑩ ",null,"外部の者による検証に関する項目",null,null,null,null,null,null,null,null,null,null,null,null,null,null,null,null,null,null,1,129,null,null,null,null,null,false]
["hide"]
[null,null,null,null,"⑪ ",null,"外部委託の実施に関する項目",null,null,null,null,null,null,null,null,null,null,null,null,null,null,null,null,null,null,1,87,null,null,null,null,null,false]
[]
["hide",null,null,null,"検証の結果"]
["hide",null,null,130,"⑪ ",null,"外部委託の実施に関する項目",null,null,null,null,null,null,null,null,null,null,null,null,null,null,null,null,null,null,1,130,null,null,null,null,null,false]
["hide"]
[null,null,null,null,"⑫ 情報公開に関する項目"]
[null,null,null,null,null,"情報公開の方法",null,null,null,null,null,null,null,null,null,null,null,null,null,null,null,null,null,null,null,1,88,null,null,null,null,null,false]
[null,null,null,null,null,"公開する項目",null,null,null,null,null,null,null,null,null,null,null,null,null,null,null,null,null,null,null,1,89,null,null,null,null,null,false]
[]
["hide",null,null,null,"検証の結果"]
["hide",null,null,null,"⑫ 情報公開に関する項目"]
["hide",null,null,131,null,"情報公開の方法",null,null,null,null,null,null,null,null,null,null,null,null,null,null,null,null,null,null,null,1,131,null,null,null,null,null,false]
["hide",null,null,132,null,"公開する項目",null,null,null,null,null,null,null,null,null,null,null,null,null,null,null,null,null,null,null,1,132,null,null,null,null,null,false]
["hide"]
[null,null,null,null,"根拠となる資料及び条項等"]
[null,"（１）「動物実験等の施設等の整備及び管理の方法」および「動物実験等の具体的な実施方法」を定めた機関内規程が策定されているか？","根拠となる資料及び条項等",null,null,null,null,null,null,null,null,null,null,null,null,null,null,null,null,null,null,null,null,null,null,3]
[]
[null,null,null,null,"判断理由、改善の見通し"]
[null,"（１）「動物実験等の施設等の整備及び管理の方法」および「動物実験等の具体的な実施方法」を定めた機関内規程が策定されているか？","判断理由、改善の見通し",null,null,null,null,null,null,null,null,null,null,null,null,null,null,null,null,null,null,null,null,null,null,3]
[]
[]
[null,"（２）",null,null,"動物実験等に関連する、細則、内規の有無"]
[]
[null,null,null,null,null,null,"有り",null,null,"無し",null,null,null,null,null,null,null,null,null,null,null,null,null,null,null,2,null,135,137]
[]
["hide",null,null,null,"検証の結果"]
["hide",null,null,null,null,null,"有り",null,null,"無し",null,null,null,null,null,null,null,null,null,null,null,null,null,null,null,2,null,162,163]
["hide"]
["hide"]
[null,null,null,null,"有りの場合はその一覧を記載"]
[null,"（２）動物実験等に関連する、細則、内規の有無","有りの場合はその一覧を記載",null,null,null,null,null,null,null,null,null,null,null,null,null,null,null,null,null,null,null,null,null,null,3]
[]
[]
[]
["hide",null,null,null,"改善に向けた意見"]
["hide",{"$f":"$B$1&\" 総括\"","v":"　２． 機関内規程 総括"},{"$f":"E166","v":"改善に向けた意見"},null,"mes",null,null,null,null,null,null,null,null,null,null,null,null,null,null,null,null,null,null,null,null,3]
[]
[]
[null,null,null,null,null,null,null,null,null,null,null,null,null,null,null,null,null,null,null,null,null,null,null,null,null,"e"]

{"sheet":"3","index":6,"n_rows":58,"n_cols":33,"rows_kept":58,"cut":false,"hidden":true,"merged":[[53,5,53,22],[13,5,13,22],[16,5,16,22],[29,5,29,22],[32,5,32,22],[45,5,45,22],[48,5,48,22]]}
[null,"　３． 実験計画",null,null,null,null,null,null,null,null,null,null,1,22,6]
[]
[null,null,null,null,{"$f":"IF(V1=2,\"（該当無し）\",\"\")","v":""},null,null,null,null,null,null,null,null,null,null,null,null,null,null,null,null,null,null,null,null,"op","chb","opB","opB","opB",null,null,"ans"]
[]
[null,"（１）",null,null,"全ての動物実験計画書は動物実験責任者により策定されているか？（厚労省基本指針第3.1）"]
[]
[null,null,null,null,null,"はい",null,null,"一部改善すべき点がある",null,null,null,null,null,null,null,"いいえ",null,null,null,null,null,null,null,null,2,null,15,17,19]
[]
["hide",null,null,null,"検証の結果"]
["hide",null,null,null,null,"はい",null,null,"一部改善すべき点がある",null,null,null,null,null,null,null,"いいえ",null,null,null,null,null,null,null,null,2,null,21,23,24]
["hide"]
[]
[null,null,null,null,"根拠となる資料及び条項等"]
[null,"(1)動物実験計画書は動物実験責任者により策定されているか？","根拠となる資料及び条項等",null,null,null,null,null,null,null,null,null,null,null,null,null,null,null,null,null,null,null,null,null,null,3]
[]
[null,null,null,null,"判断理由、改善の見通し"]
[null,"(1)動物実験計画書は動物実験責任者により策定されているか？","判断理由、改善の見通し",null,null,null,null,null,null,null,null,null,null,null,null,null,null,null,null,null,null,null,null,null,null,3]
[]
[]
[null,"（２）",null,null,"全ての動物実験計画書は動物実験責任者により機関の長に申請されているか？"]
[null,null,null,null,"（厚労省基本指針第2.4）"]
[]
[null,null,null,null,null,"はい",null,null,"一部改善すべき点がある",null,null,null,null,null,null,null,"いいえ",null,null,null,null,null,null,null,null,2,null,26,28,30]
[]
["hide",null,null,null,"検証の結果"]
["hide",null,null,null,null,"はい",null,null,"一部改善すべき点がある",null,null,null,null,null,null,null,"いいえ",null,null,null,null,null,null,null,null,2,null,56,57,58]
["hide"]
[]
[null,null,null,null,"根拠となる資料及び条項等"]
[null,"(2)動物実験計画書は動物実験責任者により機関の長に申請されているか？","根拠となる資料及び条項等",null,null,null,null,null,null,null,null,null,null,null,null,null,null,null,null,null,null,null,null,null,null,3]
[]
[null,null,null,null,"判断理由、改善の見通し"]
[null,"(2)動物実験計画書は動物実験責任者により機関の長に申請されているか？","判断理由、改善の見通し",null,null,null,null,null,null,null,null,null,null,null,null,null,null,null,null,null,null,null,null,null,null,3]
[]
[]
[null,"（３）",null,null,"全ての動物実験計画書は機関の長により承認又は却下されているか？"]
[null,null,null,null,"（厚労省基本指針第2.4および3.1）"]
[]
[null,null,null,null,null,"はい",null,null,"一部改善すべき点がある",null,null,null,null,null,null,null,"いいえ",null,null,null,null,null,null,null,null,2,null,45,46,47]
[]
["hide",null,null,null,"検証の結果"]
["hide",null,null,null,null,"はい",null,null,"一部改善すべき点がある",null,null,null,null,null,null,null,"いいえ",null,null,null,null,null,null,null,null,2,null,49,50,51]
["hide"]
[]
[null,null,null,null,"根拠となる資料及び条項等"]
[null,"(3)動物実験計画書は機関の長により承認又は却下されているか？","根拠となる資料及び条項等",null,null,null,null,null,null,null,null,null,null,null,null,null,null,null,null,null,null,null,null,null,null,3]
[]
[null,null,null,null,"判断理由、改善の見通し"]
[null,"(3)動物実験計画書は機関の長により承認又は却下されているか？","判断理由、改善の見通し",null,null,null,null,null,null,null,null,null,null,null,null,null,null,null,null,null,null,null,null,null,null,3]
[]
[]
[]
["hide",null,null,null,"改善に向けた意見"]
["hide",{"$f":"$B$1&\" 総括\"","v":"　３． 実験計画 総括"},"改善に向けた意見",null,"mes",null,null,null,null,null,null,null,null,null,null,null,null,null,null,null,null,null,null,null,null,3]
[]
[]
[]
[null,null,null,null,null,null,null,null,null,null,null,null,null,null,null,null,null,null,null,null,null,null,null,null,null,"e"]

{"sheet":"4","index":7,"n_rows":88,"n_cols":33,"rows_kept":88,"cut":false,"hidden":true,"merged":[[49,5,49,22],[75,5,75,22],[78,5,78,22],[83,5,83,22],[14,5,14,22],[17,5,17,22],[30,5,30,22],[33,5,33,22],[46,5,46,22]]}
[null,"　４． 動物実験等の実施",null,null,null,null,null,null,null,null,null,null,1,22,6]
[]
[null,null,null,null,{"$f":"IF(V1=2,\"（該当無し）\",\"\")","v":""},null,null,null,null,null,null,null,null,null,null,null,null,null,null,null,null,null,null,null,null,"op","chb","opB","opB","opB",null,null,"ans"]
[]
[null,"（１）",null,null,"動物実験計画は、代替法について記載する様式になっているか？"]
[null,null,null,null,"（厚労省基本指針第5.1）"]
[]
[null,null,null,null,null,"はい",null,null,"一部改善すべき点がある",null,null,null,null,null,null,null,"いいえ",null,null,null,null,null,null,null,null,2,null,4,5,3]
[]
["hide",null,null,null,"検証の結果"]
["hide",null,null,null,null,"はい",null,null,"一部改善すべき点がある",null,null,null,null,null,null,null,"いいえ",null,null,null,null,null,null,null,null,2,null,7,8,9]
["hide"]
[]
[null,null,null,null,"根拠となる資料及び条項等"]
[null,"(1)動物実験計画は、代替法について記載する様式になっているか？","根拠となる資料及び条項等",null,null,null,null,null,null,null,null,null,null,null,null,null,null,null,null,null,null,null,null,null,null,3]
[]
[null,null,null,null,"判断理由、改善の見通し"]
[null,"(1)動物実験計画は、代替法について記載する様式になっているか？","判断理由、改善の見通し",null,null,null,null,null,null,null,null,null,null,null,null,null,null,null,null,null,null,null,null,null,null,3]
[]
[]
[null,"（２）",null,null,"動物実験計画は、使用する動物種、系統、数、遺伝学的・微生物学的統御レベルを"]
[null,null,null,null,"記載する様式になっているか？（厚労省基本指針第5.1）"]
[]
[null,null,null,null,null,"はい",null,null,"一部改善すべき点がある",null,null,null,null,null,null,null,"いいえ",null,null,null,null,null,null,null,null,2,null,19,20,21]
[]
["hide",null,null,null,"検証の結果"]
["hide",null,null,null,null,"はい",null,null,"一部改善すべき点がある",null,null,null,null,null,null,null,"いいえ",null,null,null,null,null,null,null,null,2,null,23,24,25]
["hide"]
[]
[null,null,null,null,"根拠となる資料及び条項等"]
[null,"（2）動物実験計画は、使用する動物種、系統、数、遺伝学的・微生物学的統御レベルを記載する様式になっているか？","根拠となる資料及び条項等",null,null,null,null,null,null,null,null,null,null,null,null,null,null,null,null,null,null,null,null,null,null,3]
[]
[null,null,null,null,"判断理由、改善の見通し"]
[null,"（2）動物実験計画は、使用する動物種、系統、数、遺伝学的・微生物学的統御レベルを記載する様式になっているか？","判断理由、改善の見通し",null,null,null,null,null,null,null,null,null,null,null,null,null,null,null,null,null,null,null,null,null,null,3]
[]
[]
[null,"（３）",null,null,"動物実験計画は、苦痛の評価（カテゴリー等）、苦痛の軽減・排除法及び動物の処分方法を"]
[null,null,null,null,"記載できる様式になっているか？（厚労省基本指針第5.1）"]
[]
[null,null,null,null,null,"はい",null,null,"一部改善すべき点がある",null,null,null,null,null,null,null,"いいえ",null,null,null,null,null,null,null,null,2,null,35,36,37]
[]
["hide",null,null,null,"検証の結果"]
["hide",null,null,null,null,"はい",null,null,"一部改善すべき点がある",null,null,null,null,null,null,null,"いいえ",null,null,null,null,null,null,null,null,2,null,39,40,41]
["hide"]
[]
[null,null,null,null,"根拠となる資料及び条項等"]
[null,"（3）動物実験計画は、苦痛の評価（カテゴリー等）、苦痛の軽減・排除法及び動物の処分方法を記載できる様式になっているか？（厚労省基本指針第5.1）","根拠となる資料及び条項等",null,null,null,null,null,null,null,null,null,null,null,null,null,null,null,null,null,null,null,null,null,null,3]
[]
[null,null,null,null,"判断理由、改善の見通し"]
[null,"（3）動物実験計画は、苦痛の評価（カテゴリー等）、苦痛の軽減・排除法及び動物の処分方法を記載できる様式になっているか？（厚労省基本指針第5.1）","判断理由、改善の見通し",null,null,null,null,null,null,null,null,null,null,null,null,null,null,null,null,null,null,null,null,null,null,3]
[]
[]
[null,"（４）",null,null,"動物に実験処置を加え、もしくは生理機能等を測定するための実験室が、"]
[null,null,null,null,"以下の事項に配慮して管理されているか？（厚労省基本指針第5.1）"]
[]
[null,null,null,null,null,"はい",null,null,"一部改善すべき点がある",null,null,null,null,null,null,null,"いいえ",null,null,null,null,null,null,null,null,2,null,51,52,53]
[]
["hide",null,null,null,"検証の結果"]
["hide",null,null,null,null,"はい",null,null,"一部改善すべき点がある",null,null,null,null,null,null,null,"いいえ",null,null,null,null,null,null,null,null,2,null,55,56,57]
["hide"]
[]
[null,null,null,null,"配慮している事項："]
[null,null,null,null,null,"清潔な衛生状態を保つとともに、整理整頓されていること。",null,null,null,null,null,null,null,null,null,null,null,null,null,null,null,null,null,null,null,1,65,null,null,null,null,null,false]
[null,null,null,null,null,"その使用目的・内容等に合致した構造、設備を備えていること。",null,null,null,null,null,null,null,null,null,null,null,null,null,null,null,null,null,null,null,1,66,null,null,null,null,null,false]
[null,null,null,null,null,"飼育室内において実験的処置等を行う場合は、飼育中の他の動物への影響を",null,null,null,null,null,null,null,null,null,null,null,null,null,null,null,null,null,null,null,1,67,null,null,null,null,null,false]
[null,null,null,null,null,"できる限り少なくすること。"]
[]
["hide",null,null,null,"検証の結果"]
["hide",null,null,null,"配慮している事項："]
["hide",null,null,116,null,"清潔な衛生状態を保つとともに、整理整頓されていること。",null,null,null,null,null,null,null,null,null,null,null,null,null,null,null,null,null,null,null,1,68,null,null,null,null,null,false]
["hide",null,null,117,null,"その使用目的・内容等に合致した構造、設備を備えていること。",null,null,null,null,null,null,null,null,null,null,null,null,null,null,null,null,null,null,null,1,69,null,null,null,null,null,false]
["hide",null,null,118,null,"飼育室内において実験的処置等を行う場合は、飼育中の他の動物への影響を",null,null,null,null,null,null,null,null,null,null,null,null,null,null,null,null,null,null,null,1,70,null,null,null,null,null,false]
["hide",null,null,119,null,"できる限り少なくすること。"]
[]
[null,null,null,null,"根拠となる資料及び条項等"]
[null,"（4）動物に実験処置を加え、もしくは生理機能等を測定するための実験室が、以下の事項に配慮して管理されているか？（厚労省基本指針第5.1）","根拠となる資料及び条項等",null,null,null,null,null,null,null,null,null,null,null,null,null,null,null,null,null,null,null,null,null,null,3]
[]
[null,null,null,null,"判断理由、改善の見通し"]
[null,"（4）動物に実験処置を加え、もしくは生理機能等を測定するための実験室が、以下の事項に配慮して管理されているか？（厚労省基本指針第5.1）","判断理由、改善の見通し",null,null,null,null,null,null,null,null,null,null,null,null,null,null,null,null,null,null,null,null,null,null,3]
[]
[]
[]
["hide",null,null,null,"改善に向けた意見"]
["hide",{"$f":"$B$1&\" 総括\"","v":"　４． 動物実験等の実施 総括"},"改善に向けた意見",null,"mes",null,null,null,null,null,null,null,null,null,null,null,null,null,null,null,null,null,null,null,null,3]
[]
[]
[]
[null,null,null,null,null,null,null,null,null,null,null,null,null,null,null,null,null,null,null,null,null,null,null,null,null,"e"]

{"sheet":"5","index":8,"n_rows":43,"n_cols":33,"rows_kept":43,"cut":false,"hidden":true,"merged":[[14,5,14,22],[17,5,17,22],[30,5,30,22],[33,5,33,22],[38,5,38,22]]}
[null,"　５． 実験実施結果",null,null,null,null,null,null,null,null,null,null,1,22,6]
[]
[null,null,null,null,{"$f":"IF(V1=2,\"（該当無し）\",\"\")","v":""},null,null,null,null,null,null,null,null,null,null,null,null,null,null,null,null,null,null,null,null,"op","chb","opB","opB","opB",null,null,"ans"]
[]
[null,"（１）",null,null,"全ての動物実験計画の実施結果が、実施機関の長に報告されているか？"]
[null,null,null,null,"（厚労省基本指針第3.2）"]
[]
[null,null,null,null,null,"はい",null,null,"一部改善すべき点がある",null,null,null,null,null,null,null,"いいえ",null,null,null,null,null,null,null,null,2,null,11,12,13]
[]
["hide",null,null,null,"検証の結果"]
["hide",null,null,null,null,"はい",null,null,"一部改善すべき点がある",null,null,null,null,null,null,null,"いいえ",null,null,null,null,null,null,null,null,2,null,15,16,17]
["hide"]
[]
[null,null,null,null,"根拠となる資料及び条項等"]
[null,"（1）全ての動物実験計画の実施結果が、実施機関の長に報告されているか？","根拠となる資料及び条項等",null,null,null,null,null,null,null,null,null,null,null,null,null,null,null,null,null,null,null,null,null,null,3]
[]
[null,null,null,null,"判断理由、改善の見通し"]
[null,"（1）全ての動物実験計画の実施結果が、実施機関の長に報告されているか？","判断理由、改善の見通し",null,null,null,null,null,null,null,null,null,null,null,null,null,null,null,null,null,null,null,null,null,null,3]
[]
[]
[null,"（２）",null,null,"実施機関の長は動物実験責任者からの報告を受け、必要に応じて適正な動物実験等の実施の"]
[null,null,null,null,"ための改善措置を講じているか？（厚労省基本指針第2.5）"]
[]
[null,null,null,null,null,"はい",null,null,"一部改善すべき点がある",null,null,null,null,null,null,null,"いいえ",null,null,null,null,null,null,null,null,2,null,19,20,21]
[]
["hide",null,null,null,"検証の結果"]
["hide",null,null,null,null,"はい",null,null,"一部改善すべき点がある",null,null,null,null,null,null,null,"いいえ",null,null,null,null,null,null,null,null,2,null,23,24,25]
["hide"]
[]
[null,null,null,null,"根拠となる資料及び条項等"]
[null,"（2）実施機関の長は動物実験責任者からの報告を受け、必要に応じて適正な動物実験等の実施のための改善措置を講じているか？","根拠となる資料及び条項等",null,null,null,null,null,null,null,null,null,null,null,null,null,null,null,null,null,null,null,null,null,null,3]
[]
[null,null,null,null,"判断理由、改善の見通し"]
[null,"（2）実施機関の長は動物実験責任者からの報告を受け、必要に応じて適正な動物実験等の実施のための改善措置を講じているか？","判断理由、改善の見通し",null,null,null,null,null,null,null,null,null,null,null,null,null,null,null,null,null,null,null,null,null,null,3]
[]
[]
[]
["hide",null,null,null,"改善に向けた意見"]
["hide",{"$f":"$B$1&\" 総括\"","v":"　５． 実験実施結果 総括"},"改善に向けた意見",null,"mes",null,null,null,null,null,null,null,null,null,null,null,null,null,null,null,null,null,null,null,null,3]
[]
[]
[]
[null,null,null,null,null,null,null,null,null,null,null,null,null,null,null,null,null,null,null,null,null,null,null,null,null,"e"]

{"sheet":"6","index":9,"n_rows":153,"n_cols":33,"rows_kept":153,"cut":false,"hidden":true,"merged":[[80,5,80,22],[14,5,14,22],[17,5,17,22],[39,5,39,22],[42,5,42,22],[62,5,62,22],[140,5,140,22],[143,5,143,22],[148,5,148,22],[93,5,93,22],[96,5,96,22],[108,5,108,22],[111,5,111,22],[124,5,124,22],[127,5,127,22]]}
[null,"　６． 動物実験委員会",null,null,null,null,null,null,null,null,null,null,1,22,6]
[]
[null,null,null,null,{"$f":"IF(V1=2,\"（該当無し）\",\"\")","v":""},null,null,null,null,null,null,null,null,null,null,null,null,null,null,null,null,null,null,null,null,"op","chb","opB","opB","opB",null,null,"ans"]
[]
[null,"（１）",null,null,"動物実験委員会が実施機関の長により設置されているか？"]
[null,null,null,null,"（厚労省基本指針第2.3）"]
[]
[null,null,null,null,null,"はい",null,null,"一部改善すべき点がある",null,null,null,null,null,null,null,"いいえ",null,null,null,null,null,null,null,null,2,null,15,16,17]
[]
["hide",null,null,null,"検証の結果"]
["hide",null,null,null,null,"はい",null,null,"一部改善すべき点がある",null,null,null,null,null,null,null,"いいえ",null,null,null,null,null,null,null,null,2,null,19,20,21]
["hide"]
[]
[null,null,null,null,"根拠となる資料及び条項等"]
[null,"（1）動物実験委員会が実施機関の長により設置されているか？","根拠となる資料及び条項等",null,null,null,null,null,null,null,null,null,null,null,null,null,null,null,null,null,null,null,null,null,null,3]
[]
[null,null,null,null,"判断理由、改善の見通し"]
[null,"（1）動物実験委員会が実施機関の長により設置されているか？","判断理由、改善の見通し",null,null,null,null,null,null,null,null,null,null,null,null,null,null,null,null,null,null,null,null,null,null,3]
[]
[]
[null,"（２）",null,null,"委員は機関の長により下記に掲げるものから任命されているか？"]
[null,null,null,null,"（厚労省基本指針第4.2）"]
[]
[null,null,null,null,null,"はい",null,null,"一部改善すべき点がある",null,null,null,null,null,null,null,"いいえ",null,null,null,null,null,null,null,null,2,null,39,40,41]
[]
["hide",null,null,null,"検証の結果"]
["hide",null,null,null,null,"はい",null,null,"一部改善すべき点がある",null,null,null,null,null,null,null,"いいえ",null,null,null,null,null,null,null,null,2,null,43,44,45]
["hide"]
[]
[null,null,null,null,null,"動物実験等に関して優れた識見を有する者",null,null,null,null,null,null,null,null,null,null,null,null,null,null,null,null,null,null,null,1,53,null,null,null,null,null,false]
[null,null,null,null,null,"実験動物に関して優れた識見を有する者",null,null,null,null,null,null,null,null,null,null,null,null,null,null,null,null,null,null,null,1,54,null,null,null,null,null,false]
[null,null,null,null,null,"その他学識経験を有する者",null,null,null,null,null,null,null,null,null,null,null,null,null,null,null,null,null,null,null,1,55,null,null,null,null,null,false]
[]
["hide",null,null,null,"検証の結果"]
["hide",null,null,111,null,"動物実験等に関して優れた識見を有する者",null,null,null,null,null,null,null,null,null,null,null,null,null,null,null,null,null,null,null,1,56,null,null,null,null,null,false]
["hide",null,null,112,null,"実験動物に関して優れた識見を有する者",null,null,null,null,null,null,null,null,null,null,null,null,null,null,null,null,null,null,null,1,57,null,null,null,null,null,false]
["hide",null,null,113,null,"その他学識経験を有する者",null,null,null,null,null,null,null,null,null,null,null,null,null,null,null,null,null,null,null,1,58,null,null,null,null,null,false]
[]
[null,null,null,null,"根拠となる資料及び条項等"]
[null,"（2）委員は機関の長により下記に掲げるものから任命されているか？","根拠となる資料及び条項等",null,null,null,null,null,null,null,null,null,null,null,null,null,null,null,null,null,null,null,null,null,null,3]
[]
[null,null,null,null,"判断理由、改善の見通し"]
[null,"（2）委員は機関の長により下記に掲げるものから任命されているか？","判断理由、改善の見通し",null,null,null,null,null,null,null,null,null,null,null,null,null,null,null,null,null,null,null,null,null,null,3]
[]
[]
[null,"（３）",null,null,"動物実験計画書に含まれる項目："]
[]
[null,null,null,null,null,"研究の目的と意義",null,null,null,null,null,null,null,null,null,null,null,null,null,null,null,null,null,null,null,1,65,null,null,null,null,null,false]
[null,null,null,null,null,"実験方法",null,null,null,null,null,null,null,null,null,null,null,null,null,null,null,null,null,null,null,1,66,null,null,null,null,null,false]
[null,null,null,null,null,"実験期間",null,null,null,null,null,null,null,null,null,null,null,null,null,null,null,null,null,null,null,1,67,null,null,null,null,null,false]
[null,null,null,null,null,"使用動物種",null,null,null,null,null,null,null,null,null,null,null,null,null,null,null,null,null,null,null,1,68,null,null,null,null,null,false]
[null,null,null,null,null,"使用動物の遺伝的・微生物学的品質",null,null,null,null,null,null,null,null,null,null,null,null,null,null,null,null,null,null,null,1,69,null,null,null,null,null,false]
[null,null,null,null,null,"使用予定匹数と、その根拠",null,null,null,null,null,null,null,null,null,null,null,null,null,null,null,null,null,null,null,1,70,null,null,null,null,null,false]
[null,null,null,null,null,"実験実施場所",null,null,null,null,null,null,null,null,null,null,null,null,null,null,null,null,null,null,null,1,79,null,null,null,null,null,false]
[null,null,null,null,null,"麻酔法、安楽死法",null,null,null,null,null,null,null,null,null,null,null,null,null,null,null,null,null,null,null,1,80,null,null,null,null,null,false]
[null,null,null,null,null,"代替法の検討",null,null,null,null,null,null,null,null,null,null,null,null,null,null,null,null,null,null,null,1,81,null,null,null,null,null,false]
[null,null,null,null,null,"苦痛度分類",null,null,null,null,null,null,null,null,null,null,null,null,null,null,null,null,null,null,null,1,82,null,null,null,null,null,false]
[null,null,null,null,null,"苦痛軽減措置",null,null,null,null,null,null,null,null,null,null,null,null,null,null,null,null,null,null,null,1,155,null,null,null,null,null,false]
[null,null,null,null,null,"人道的エンドポイント",null,null,null,null,null,null,null,null,null,null,null,null,null,null,null,null,null,null,null,1,83,null,null,null,null,null,false]
[null,null,null,null,null,"動物死体の処理法",null,null,null,null,null,null,null,null,null,null,null,null,null,null,null,null,null,null,null,1,84,null,null,null,null,null,false]
[null,null,null,null,null,"物理的、化学的または生物学的危険因子、遺伝子組換え生物の使用",null,null,null,null,null,null,null,null,null,null,null,null,null,null,null,null,null,null,null,1,85,null,null,null,null,null,false]
[null,null,null,null,null,"その他",null,null,null,null,null,null,null,null,null,null,null,null,null,null,null,null,null,null,null,1,86,null,null,null,null,null,false]
[null,"（3）動物実験計画書に含まれる項目：","その他",null,null,null,null,null,null,null,null,null,null,null,null,null,null,null,null,null,null,null,null,null,null,3]
[]
["hide",null,null,null,"検証の結果"]
["hide",null,null,null,null,"研究の目的と意義",null,null,null,null,null,null,null,null,null,null,null,null,null,null,null,null,null,null,null,1,101,null,null,null,null,null,false]
["hide",null,null,null,null,"実験方法",null,null,null,null,null,null,null,null,null,null,null,null,null,null,null,null,null,null,null,1,102,null,null,null,null,null,false]
["hide",null,null,null,null,"実験期間",null,null,null,null,null,null,null,null,null,null,null,null,null,null,null,null,null,null,null,1,103,null,null,null,null,null,false]
["hide",null,null,null,null,"使用動物種",null,null,null,null,null,null,null,null,null,null,null,null,null,null,null,null,null,null,null,1,104,null,null,null,null,null,false]
["hide",null,null,null,null,"使用動物の遺伝的・微生物学的品質",null,null,null,null,null,null,null,null,null,null,null,null,null,null,null,null,null,null,null,1,105,null,null,null,null,null,false]
["hide",null,null,null,null,"使用予定匹数と、その根拠",null,null,null,null,null,null,null,null,null,null,null,null,null,null,null,null,null,null,null,1,106,null,null,null,null,null,false]
["hide",null,null,null,null,"実験実施場所",null,null,null,null,null,null,null,null,null,null,null,null,null,null,null,null,null,null,null,1,107,null,null,null,null,null,false]
["hide",null,null,null,null,"麻酔法、安楽死法",null,null,null,null,null,null,null,null,null,null,null,null,null,null,null,null,null,null,null,1,108,null,null,null,null,null,false]
["hide",null,null,null,null,"代替法の検討",null,null,null,null,null,null,null,null,null,null,null,null,null,null,null,null,null,null,null,1,109,null,null,null,null,null,false]
["hide",null,null,null,null,"苦痛度分類",null,null,null,null,null,null,null,null,null,null,null,null,null,null,null,null,null,null,null,1,110,null,null,null,null,null,false]
["hide",null,null,null,null,"苦痛軽減措置",null,null,null,null,null,null,null,null,null,null,null,null,null,null,null,null,null,null,null,1,156,null,null,null,null,null,false]
["hide",null,null,null,null,"人道的エンドポイント",null,null,null,null,null,null,null,null,null,null,null,null,null,null,null,null,null,null,null,1,111,null,null,null,null,null,false]
["hide",null,null,null,null,"動物死体の処理法",null,null,null,null,null,null,null,null,null,null,null,null,null,null,null,null,null,null,null,1,112,null,null,null,null,null,false]
["hide",null,null,null,null,"物理的、化学的または生物学的危険因子、遺伝子組換え生物の使用",null,null,null,null,null,null,null,null,null,null,null,null,null,null,null,null,null,null,null,1,113,null,null,null,null,null,false]
["hide",null,null,null,null,"その他",null,null,null,null,null,null,null,null,null,null,null,null,null,null,null,null,null,null,null,1,114,null,null,null,null,null,false]
["hide","（3）動物実験計画書に含まれる項目：","その他",null,null,null,null,null,null,null,null,null,null,null,null,null,null,null,null,null,null,null,null,null,null,3]
[]
[]
[null,"（４）",null,null,"動物実験委員会は、基本指針及び機関内規程等に適合しているか否かの審査を行っているか？"]
[null,null,null,null,"（厚労省基本指針第4.1）"]
[]
[null,null,null,null,null,"はい",null,null,"一部改善すべき点がある",null,null,null,null,null,null,null,"いいえ",null,null,null,null,null,null,null,null,2,null,123,124,125]
[]
["hide",null,null,null,"検証の結果"]
["hide",null,null,null,null,"はい",null,null,"一部改善すべき点がある",null,null,null,null,null,null,null,"いいえ",null,null,null,null,null,null,null,null,2,null,127,128,129]
["hide"]
[]
[null,null,null,null,"根拠となる資料及び条項等"]
[null,"（4）動物実験委員会は、基本指針及び機関内規程等に適合しているか否かの審査を行っているか？","根拠となる資料及び条項等",null,null,null,null,null,null,null,null,null,null,null,null,null,null,null,null,null,null,null,null,null,null,3]
[]
[null,null,null,null,"判断理由、改善の見通し"]
[null,"（4）動物実験委員会は、基本指針及び機関内規程等に適合しているか否かの審査を行っているか？","判断理由、改善の見通し",null,null,null,null,null,null,null,null,null,null,null,null,null,null,null,null,null,null,null,null,null,null,3]
[]
[]
[null,"（５）",null,null,"動物実験委員会の議事録を作成し、適切に保管しているか？（厚労省基本指針第4.1）"]
[]
[null,null,null,null,null,"はい",null,null,"一部改善すべき点がある",null,null,null,null,null,null,null,"いいえ",null,null,null,null,null,null,null,null,2,null,132,133,134]
[]
["hide",null,null,null,"検証の結果"]
["hide",null,null,null,null,"はい",null,null,"一部改善すべき点がある",null,null,null,null,null,null,null,"いいえ",null,null,null,null,null,null,null,null,2,null,135,136,137]
["hide"]
[]
[null,null,null,null,"根拠となる資料及び条項等"]
[null,"（5）動物実験委員会の議事録を作成し、適切に保管しているか？","根拠となる資料及び条項等",null,null,null,null,null,null,null,null,null,null,null,null,null,null,null,null,null,null,null,null,null,null,3]
[]
[null,null,null,null,"判断理由、改善の見通し"]
[null,"（5）動物実験委員会の議事録を作成し、適切に保管しているか？","判断理由、改善の見通し",null,null,null,null,null,null,null,null,null,null,null,null,null,null,null,null,null,null,null,null,null,null,3]
[]
[]
[null,"（６）",null,null,"動物実験委員会は、動物実験計画書の審査結果を、実施機関の長に報告しているか？"]
[null,null,null,null,"（厚労省基本指針第4.1）"]
[]
[null,null,null,null,null,"はい",null,null,"一部改善すべき点がある",null,null,null,null,null,null,null,"いいえ",null,null,null,null,null,null,null,null,2,null,139,140,141]
[]
["hide",null,null,null,"検証の結果"]
["hide",null,null,null,null,"はい",null,null,"一部改善すべき点がある",null,null,null,null,null,null,null,"いいえ",null,null,null,null,null,null,null,null,2,null,143,144,145]
["hide"]
[]
[null,null,null,null,"根拠となる資料及び条項等"]
[null,"（6）動物実験委員会は、動物実験計画書の審査結果を、実施機関の長に報告しているか？","根拠となる資料及び条項等",null,null,null,null,null,null,null,null,null,null,null,null,null,null,null,null,null,null,null,null,null,null,3]
[]
[null,null,null,null,"判断理由、改善の見通し"]
[null,"（6）動物実験委員会は、動物実験計画書の審査結果を、実施機関の長に報告しているか？","判断理由、改善の見通し",null,null,null,null,null,null,null,null,null,null,null,null,null,null,null,null,null,null,null,null,null,null,3]
[]
[]
[null,"（７）",null,null,"動物実験委員会は、実施機関の長から動物実験計画の実施結果の報告を受け、"]
[null,null,null,null,"必要な助言を行っているか？（厚労省基本指針第4.1）"]
[]
[null,null,null,null,null,"はい",null,null,"一部改善すべき点がある",null,null,null,null,null,null,null,"いいえ",null,null,null,null,null,null,null,null,2,null,147,148,149]
[]
["hide",null,null,null,"検証の結果"]
["hide",null,null,null,null,"はい",null,null,"一部改善すべき点がある",null,null,null,null,null,null,null,"いいえ",null,null,null,null,null,null,null,null,2,null,151,152,153]
["hide"]
[]
[null,null,null,null,"根拠となる資料及び条項等"]
[null,"（7）動物実験委員会は、実施機関の長から動物実験計画の実施結果の報告を受け、必要な助言を行っているか？","根拠となる資料及び条項等",null,null,null,null,null,null,null,null,null,null,null,null,null,null,null,null,null,null,null,null,null,null,3]
[]
[null,null,null,null,"判断理由、改善の見通し"]
[null,"（7）動物実験委員会は、実施機関の長から動物実験計画の実施結果の報告を受け、必要な助言を行っているか？","判断理由、改善の見通し",null,null,null,null,null,null,null,null,null,null,null,null,null,null,null,null,null,null,null,null,null,null,3]
[]
[]
[]
["hide",null,null,null,"改善に向けた意見"]
["hide",{"$f":"$B$1&\" 総括\"","v":"　６． 動物実験委員会 総括"},"改善に向けた意見",null,"mes",null,null,null,null,null,null,null,null,null,null,null,null,null,null,null,null,null,null,null,null,3]
[]
[]
[]
[null,null,null,null,null,null,null,null,null,null,null,null,null,null,null,null,null,null,null,null,null,null,null,null,null,"e"]

{"sheet":"7","index":10,"n_rows":73,"n_cols":33,"rows_kept":73,"cut":false,"hidden":true,"merged":[[68,5,68,22],[27,5,27,22],[30,5,30,22],[40,5,40,22],[47,5,47,22],[60,5,60,22],[63,5,63,22]]}
[null,"　７． 安全管理",null,null,null,null,null,null,null,null,null,null,1,22,6]
[]
[null,null,null,null,{"$f":"IF(V1=2,\"（該当無し）\",\"\")","v":""},null,null,null,null,null,null,null,null,null,null,null,null,null,null,null,null,null,null,null,null,"op","chb","opB","opB","opB","opB",null,"ans"]
[]
[null,"（１）",null,null,"安全管理に留意すべき動物実験について、以下の実施体制が定められているか？"]
[null,null,null,null,"（厚労省基本指針第5.2）"]
[]
[null,null,null,null,null,"はい",null,"　一部改善すべき点がある",null,null,null,null,null,null,"いいえ",null,null,"該当する実験が行われていない",null,null,null,null,null,null,null,2,null,3,4,5,54]
[]
["hide",null,null,null,"検証の結果"]
["hide",null,null,null,null,"はい",null,"　一部改善すべき点がある",null,null,null,null,null,null,"いいえ",null,null,"該当する実験が行われていない",null,null,null,null,null,null,null,2,null,7,8,9,55]
["hide"]
[]
[null,null,null,null,"定められている項目："]
[null,null,null,null,null,"病原体の感染実験",null,null,null,null,null,null,null,null,null,null,null,null,null,null,null,null,null,null,null,1,11,null,null,null,null,null,false]
[null,null,null,null,null,"有害化学物質の投与実験",null,null,null,null,null,null,null,null,null,null,null,null,null,null,null,null,null,null,null,1,12,null,null,null,null,null,false]
[null,null,null,null,null,"放射性物質の投与実験",null,null,null,null,null,null,null,null,null,null,null,null,null,null,null,null,null,null,null,1,13,null,null,null,null,null,false]
[null,null,null,null,null,"遺伝子組換え動物を用いる実験",null,null,null,null,null,null,null,null,null,null,null,null,null,null,null,null,null,null,null,1,18,null,null,null,null,null,false]
[]
["hide",null,null,null,"検証の結果"]
["hide",null,null,null,"定められている項目："]
["hide",null,null,116,null,"病原体の感染実験",null,null,null,null,null,null,null,null,null,null,null,null,null,null,null,null,null,null,null,1,14,null,null,null,null,null,false]
["hide",null,null,117,null,"有害化学物質の投与実験",null,null,null,null,null,null,null,null,null,null,null,null,null,null,null,null,null,null,null,1,15,null,null,null,null,null,false]
["hide",null,null,118,null,"放射性物質の投与実験",null,null,null,null,null,null,null,null,null,null,null,null,null,null,null,null,null,null,null,1,16,null,null,null,null,null,false]
["hide",null,null,119,null,"遺伝子組換え動物を用いる実験",null,null,null,null,null,null,null,null,null,null,null,null,null,null,null,null,null,null,null,1,56,null,null,null,null,null,false]
[]
[null,null,null,null,"根拠となる資料及び条項等"]
[null,"（1）安全管理に留意すべき動物実験について、以下の実施体制が定められているか？","根拠となる資料及び条項等",null,null,null,null,null,null,null,null,null,null,null,null,null,null,null,null,null,null,null,null,null,null,3]
[]
[null,null,null,null,"判断理由、改善の見通し"]
[null,"（1）安全管理に留意すべき動物実験について、以下の実施体制が定められているか？","判断理由、改善の見通し",null,null,null,null,null,null,null,null,null,null,null,null,null,null,null,null,null,null,null,null,null,null,3]
[]
[]
[null,"（２）",null,null,"上記実験を実施する場合に、配慮している項目"]
[null,null,null,null,"（厚労省基本指針第5.2）"]
[]
[null,null,null,null,null,"動物実験実施者の安全確保および健康保持",null,null,null,null,null,null,null,null,null,null,null,null,null,null,null,null,null,null,null,1,33,null,null,null,null,null,false]
[null,null,null,null,null,"施設周辺の公衆衛生、生活環境および生態系の保全上の支障の防止",null,null,null,null,null,null,null,null,null,null,null,null,null,null,null,null,null,null,null,1,34,null,null,null,null,null,false]
[null,null,null,null,null,"飼育環境の汚染による実験動物への傷害防止",null,null,null,null,null,null,null,null,null,null,null,null,null,null,null,null,null,null,null,1,35,null,null,null,null,null,false]
[null,null,null,null,null,"その他",null,null,null,null,null,null,null,null,null,null,null,null,null,null,null,null,null,null,null,1,36,null,null,null,null,null,false]
[null,"（2）上記実験を実施する場合に、配慮している項目（厚労省基本指針第5.2）","その他",null,null,null,null,null,null,null,null,null,null,null,null,null,null,null,null,null,null,null,null,null,null,3]
[]
["hide",null,null,null,"検証の結果"]
["hide",null,null,null,null,"動物実験実施者の安全確保および健康保持",null,null,null,null,null,null,null,null,null,null,null,null,null,null,null,null,null,null,null,1,41,null,null,null,null,null,false]
["hide",null,null,null,null,"施設周辺の公衆衛生、生活環境および生態系の保全上の支障の防止",null,null,null,null,null,null,null,null,null,null,null,null,null,null,null,null,null,null,null,1,42,null,null,null,null,null,false]
["hide",null,null,null,null,"飼育環境の汚染による実験動物への傷害防止",null,null,null,null,null,null,null,null,null,null,null,null,null,null,null,null,null,null,null,1,43,null,null,null,null,null,false]
["hide",null,null,null,null,"その他",null,null,null,null,null,null,null,null,null,null,null,null,null,null,null,null,null,null,null,1,44,null,null,null,null,null,false]
["hide","（2）上記実験を実施する場合に、配慮している項目（厚労省基本指針第5.2）","その他",null,null,null,null,null,null,null,null,null,null,null,null,null,null,null,null,null,null,null,null,null,null,3]
[]
[]
[null,"（３）",null,null,"麻薬・向精神薬の使用について、行政への必要な手続きを行っているか？"]
[null,null,null,null,"（厚労省基本指針第5.2）"]
[]
[null,null,null,null,null,"はい",null,null,"いいえ",null,null,null,"麻薬・向精神薬は使用していない",null,null,null,null,null,null,null,null,null,null,null,null,2,null,45,46,47]
[]
["hide",null,null,null,"検証の結果"]
["hide",null,null,null,null,"はい",null,null,"いいえ",null,null,null,"麻薬・向精神薬は使用していない",null,null,null,null,null,null,null,null,null,null,null,null,2,null,49,50,51]
["hide"]
[]
[null,null,null,null,"根拠となる資料及び条項等"]
[null,"（3）麻薬・向精神薬の使用について、行政への必要な手続きを行っているか？（厚労省基本指針第5.2）","根拠となる資料及び条項等",null,null,null,null,null,null,null,null,null,null,null,null,null,null,null,null,null,null,null,null,null,null,3]
[]
[null,null,null,null,"判断理由、改善の見通し"]
[null,"（3）麻薬・向精神薬の使用について、行政への必要な手続きを行っているか？（厚労省基本指針第5.2）","判断理由、改善の見通し",null,null,null,null,null,null,null,null,null,null,null,null,null,null,null,null,null,null,null,null,null,null,3]
[]
[]
[]
["hide",null,null,null,"改善に向けた意見"]
["hide",{"$f":"$B$1&\" 総括\"","v":"　７． 安全管理 総括"},"改善に向けた意見",null,"mes",null,null,null,null,null,null,null,null,null,null,null,null,null,null,null,null,null,null,null,null,3]
[]
[]
[]
[null,null,null,null,null,null,null,null,null,null,null,null,null,null,null,null,null,null,null,null,null,null,null,null,null,"e"]

{"sheet":"8","index":11,"n_rows":471,"n_cols":33,"rows_kept":471,"cut":false,"hidden":true,"merged":[[466,5,466,22],[408,5,408,22],[411,5,411,22],[458,5,458,22],[461,5,461,22],[363,5,363,22],[376,5,376,22],[379,5,379,22],[392,5,392,22],[395,5,395,22],[344,5,344,22],[347,5,347,22],[331,5,331,22],[341,5,341,22],[360,5,360,22],[279,5,279,22],[292,5,292,22],[295,5,295,22],[308,5,308,22],[311,5,311,22],[243,5,243,22],[246,5,246,22],[260,5,260,22],[263,5,263,22],[276,5,276,22],[227,5,227,22],[230,5,230,22],[172,5,172,22],[179,5,179,22],[184,5,184,22],[191,5,191,22],[198,5,198,22],[206,5,206,22],[215,5,215,22],[224,5,224,22],[158,5,158,22],[126,5,126,22],[123,5,123,22],[139,5,139,22],[142,5,142,22],[155,5,155,22],[97,5,97,22],[14,5,14,22],[17,5,17,22],[30,5,30,22],[33,5,33,22],[46,5,46,22],[49,5,49,22],[62,5,62,22],[65,5,65,22],[78,5,78,22],[81,5,81,22],[94,5,94,22]]}
[null,"　８． 飼養保管",null,null,null,null,null,null,null,null,null,null,1,22,6]
[]
[null,null,null,null,{"$f":"IF(V1=2,\"（該当無し）\",\"\")","v":""},null,null,null,null,null,null,null,null,null,null,null,null,null,null,null,null,null,null,null,null,"op","chb","opB","opB","opB",null,null,"ans"]
[]
[null,"（１）",null,null,"実施機関の長は、機関内の（動物の）飼養保管施設をすべて把握しているか？"]
[null,null,null,null,"（厚労省基本指針第2．1）"]
[]
[null,null,null,null,null,"はい",null,null,"一部改善すべき点がある",null,null,null,null,null,null,null,"いいえ",null,null,null,null,null,null,null,null,2,null,5,6,7]
[]
["hide","hide",null,null,"検証の結果"]
["hide","hide",null,null,null,"はい",null,null,"一部改善すべき点がある",null,null,null,null,null,null,null,"いいえ",null,null,null,null,null,null,null,null,2,null,9,10,11]
["hide","hide"]
[]
[null,null,null,null,"根拠となる資料及び条項等"]
[null,"（1）実施機関の長は、機関内の（動物の）飼養保管施設をすべて把握しているか？","根拠となる資料及び条項等",null,null,null,null,null,null,null,null,null,null,null,null,null,null,null,null,null,null,null,null,null,null,3]
[]
[null,null,null,null,"判断理由、改善の見通し"]
[null,"（1）実施機関の長は、機関内の（動物の）飼養保管施設をすべて把握しているか？（厚労省基本指針第2．1）","判断理由、改善の見通し",null,null,null,null,null,null,null,null,null,null,null,null,null,null,null,null,null,null,null,null,null,null,3]
[]
[]
[null,"（２）",null,null,"すべての（動物の）飼養保管施設に実験動物管理者が置かれているか？"]
[null,null,null,null,"（飼養保管基準第3.1（3））"]
[]
[null,null,null,null,null,"はい",null,null,"一部改善すべき点がある",null,null,null,null,null,null,null,"いいえ",null,null,null,null,null,null,null,null,2,null,29,30,31]
[]
["hide","hide",null,null,"検証の結果"]
["hide","hide",null,null,null,"はい",null,null,"一部改善すべき点がある",null,null,null,null,null,null,null,"いいえ",null,null,null,null,null,null,null,null,2,null,33,34,35]
["hide","hide"]
[]
[null,null,null,null,"根拠となる資料及び条項等"]
[null,"（2）すべての（動物の）飼養保管施設に実験動物管理者が置かれているか？","根拠となる資料及び条項等",null,null,null,null,null,null,null,null,null,null,null,null,null,null,null,null,null,null,null,null,null,null,3]
[]
[null,null,null,null,"判断理由、改善の見通し"]
[null,"（2）すべての（動物の）飼養保管施設に実験動物管理者が置かれているか？","判断理由、改善の見通し",null,null,null,null,null,null,null,null,null,null,null,null,null,null,null,null,null,null,null,null,null,null,3]
[]
[]
[null,"（３）",null,null,"実験動物種毎に適切な給餌・給水が行われているか？"]
[null,null,null,null,"（厚労省基本指針第6、飼養保管基準第3.1(1)ア）"]
[]
[null,null,null,null,null,"はい",null,null,"一部改善すべき点がある",null,null,null,null,null,null,null,"いいえ",null,null,null,null,null,null,null,null,2,null,53,54,55]
[]
["hide","hide",null,null,"検証の結果"]
["hide","hide",null,null,null,"はい",null,null,"一部改善すべき点がある",null,null,null,null,null,null,null,"いいえ",null,null,null,null,null,null,null,null,2,null,57,58,59]
["hide","hide"]
[]
[null,null,null,null,"根拠となる資料及び条項等"]
[null,"（3）実験動物種毎に適切な給餌・給水が行われているか？","根拠となる資料及び条項等",null,null,null,null,null,null,null,null,null,null,null,null,null,null,null,null,null,null,null,null,null,null,3]
[]
[null,null,null,null,"判断理由、改善の見通し"]
[null,"（3）実験動物種毎に適切な給餌・給水が行われているか？","判断理由、改善の見通し",null,null,null,null,null,null,null,null,null,null,null,null,null,null,null,null,null,null,null,null,null,null,3]
[]
[]
[null,"（４）",null,null,"実験動物の傷害または疾病の予防に必要な健康管理、ならびに必要に応じて"]
[null,null,null,null,"適切な治療が行われているか？（厚労省基本指針第6、飼養保管基準第3.1(1)イ）"]
[]
[null,null,null,null,null,"はい",null,null,"一部改善すべき点がある",null,null,null,null,null,null,null,"いいえ",null,null,null,null,null,null,null,null,2,null,77,78,79]
[]
["hide","hide",null,null,"検証の結果"]
["hide","hide",null,null,null,"はい",null,null,"一部改善すべき点がある",null,null,null,null,null,null,null,"いいえ",null,null,null,null,null,null,null,null,2,null,81,82,83]
["hide","hide"]
[]
[null,null,null,null,"根拠となる資料及び条項等"]
[null,"（4）実験動物の傷害または疾病の予防に必要な健康管理、ならびに必要に応じて適切な治療が行われているか？","根拠となる資料及び条項等",null,null,null,null,null,null,null,null,null,null,null,null,null,null,null,null,null,null,null,null,null,null,3]
[]
[null,null,null,null,"判断理由、改善の見通し"]
[null,"（4）実験動物の傷害または疾病の予防に必要な健康管理、ならびに必要に応じて適切な治療が行われているか？（厚労省基本指針第6、飼養保管基準第3.1(1)イ）","判断理由、改善の見通し",null,null,null,null,null,null,null,null,null,null,null,null,null,null,null,null,null,null,null,null,null,null,3]
[]
[]
[null,"（５）",null,null,"実験動物導入時の検疫・順化並びに必要に応じて隔離飼育等を行っているか？"]
[null,null,null,null,"（厚労省基本指針第6、飼養保管基準第3.1(1)ウ）"]
[]
[null,null,null,null,null,"はい",null,null,"一部改善すべき点がある",null,null,null,null,null,null,null,"いいえ",null,null,null,null,null,null,null,null,2,null,101,102,103]
[]
["hide","hide",null,null,"検証の結果"]
["hide","hide",null,null,null,"はい",null,null,"一部改善すべき点がある",null,null,null,null,null,null,null,"いいえ",null,null,null,null,null,null,null,null,2,null,105,106,107]
["hide","hide"]
[]
[null,null,null,null,"根拠となる資料及び条項等"]
[null,"（5）実験動物導入時の検疫・順化並びに必要に応じて隔離飼育等を行っているか？","根拠となる資料及び条項等",null,null,null,null,null,null,null,null,null,null,null,null,null,null,null,null,null,null,null,null,null,null,3]
[]
[null,null,null,null,"判断理由、改善の見通し"]
[null,"（5）実験動物導入時の検疫・順化並びに必要に応じて隔離飼育等を行っているか？","判断理由、改善の見通し",null,null,null,null,null,null,null,null,null,null,null,null,null,null,null,null,null,null,null,null,null,null,3]
[]
[]
[null,"（６）",null,null,"異種又は複数の実験動物を同一飼育施設内で飼養保管する場合、その組み合わせを"]
[null,null,null,null,"考慮しているか？（厚労省基本指針第6、飼養保管基準第3.1(1)エ）"]
[]
[null,null,null,null,null,"はい",null,null,"一部改善すべき点がある",null,null,null,null,null,null,null,"いいえ",null,null,null,null,null,null,null,null,2,null,125,126,127]
[]
["hide","hide",null,null,"検証の結果"]
["hide","hide",null,null,null,"はい",null,null,"一部改善すべき点がある",null,null,null,null,null,null,null,"いいえ",null,null,null,null,null,null,null,null,2,null,129,130,131]
["hide","hide"]
[]
[null,null,null,null,"根拠となる資料及び条項等"]
[null,"（6）異種又は複数の実験動物を同一飼育施設内で飼養保管する場合、その組み合わせを考慮しているか？","根拠となる資料及び条項等",null,null,null,null,null,null,null,null,null,null,null,null,null,null,null,null,null,null,null,null,null,null,3]
[]
[null,null,null,null,"判断理由、改善の見通し"]
[null,"（6）異種又は複数の実験動物を同一飼育施設内で飼養保管する場合、その組み合わせを考慮しているか？","判断理由、改善の見通し",null,null,null,null,null,null,null,null,null,null,null,null,null,null,null,null,null,null,null,null,null,null,3]
[]
[]
[null,"（７）",null,null,"実験動物の輸送時には、実験動物の健康および安全確保並びに実験動物による人への"]
[null,null,null,null,"危害等の発生防止に努めているか？（厚労省基本指針第6、飼養保管基準第3.6）"]
[]
[null,null,null,null,null,"はい",null,null,"一部改善すべき点がある",null,null,null,null,null,null,null,"いいえ",null,null,null,null,null,null,null,null,2,null,149,150,151]
[]
["hide","hide",null,null,"検証の結果"]
["hide","hide",null,null,null,"はい",null,null,"一部改善すべき点がある",null,null,null,null,null,null,null,"いいえ",null,null,null,null,null,null,null,null,2,null,153,154,155]
["hide","hide"]
[]
[null,null,null,null,"実験動物を輸送する際に、配慮している項目："]
[null,null,null,null,null,"輸送時間をなるべく短時間にすること。",null,null,null,null,null,null,null,null,null,null,null,null,null,null,null,null,null,null,null,1,157,null,null,null,null,null,false]
[null,null,null,null,null,"必要に応じて適切な給餌および給水を行うとともに、換気等により適切な温度に維持すること。",null,null,null,null,null,null,null,null,null,null,null,null,null,null,null,null,null,null,null,1,158,null,null,null,null,null,false]
[null,null,null,null,null,"実験動物の健康および安全を確保し、逸走防止に必要な規模、構造等を選定すること。",null,null,null,null,null,null,null,null,null,null,null,null,null,null,null,null,null,null,null,1,159,null,null,null,null,null,false]
[null,null,null,null,null,"実験動物が保有する微生物、実験動物の汚物等による環境汚染の防止。",null,null,null,null,null,null,null,null,null,null,null,null,null,null,null,null,null,null,null,1,160,null,null,null,null,null,false]
[]
["hide","hide",null,null,"検証の結果"]
["hide","hide",null,null,"実験動物を輸送する際に、配慮している項目："]
["hide","hide",null,null,null,"輸送時間をなるべく短時間にすること。",null,null,null,null,null,null,null,null,null,null,null,null,null,null,null,null,null,null,null,1,173,null,null,null,null,null,false]
["hide","hide",null,null,null,"必要に応じて適切な給餌および給水を行うとともに、換気等により適切な温度に維持すること。",null,null,null,null,null,null,null,null,null,null,null,null,null,null,null,null,null,null,null,1,174,null,null,null,null,null,false]
["hide","hide",null,null,null,"実験動物の健康および安全を確保し、逸走防止に必要な規模、構造等を選定すること。",null,null,null,null,null,null,null,null,null,null,null,null,null,null,null,null,null,null,null,1,175,null,null,null,null,null,false]
["hide","hide",null,null,null,"実験動物が保有する微生物、実験動物の汚物等による環境汚染の防止。",null,null,null,null,null,null,null,null,null,null,null,null,null,null,null,null,null,null,null,1,177,null,null,null,null,null,false]
[]
[null,null,null,null,"根拠となる資料及び条項等"]
[null,"（7）実験動物の輸送時には、実験動物の健康および安全確保並びに実験動物による人への危害等の発生防止に努めているか？","根拠となる資料及び条項等",null,null,null,null,null,null,null,null,null,null,null,null,null,null,null,null,null,null,null,null,null,null,3]
[]
[null,null,null,null,"判断理由、改善の見通し"]
[null,"（7）実験動物の輸送時には、実験動物の健康および安全確保並びに実験動物による人への危害等の発生防止に努めているか？","判断理由、改善の見通し",null,null,null,null,null,null,null,null,null,null,null,null,null,null,null,null,null,null,null,null,null,null,3]
[]
[]
[null,"（８）",null,null,"実験動物が日常的な行動を容易に行うことができる施設で飼養保管されているか？"]
[null,null,null,null,"（厚労省基本指針第6、飼養保管基準第3.1(2)ア）"]
[]
[null,null,null,null,null,"はい",null,null,"一部改善すべき点がある",null,null,null,null,null,null,null,"いいえ",null,null,null,null,null,null,null,null,2,null,186,187,188]
[]
["hide","hide",null,null,"検証の結果"]
["hide","hide",null,null,null,"はい",null,null,"一部改善すべき点がある",null,null,null,null,null,null,null,"いいえ",null,null,null,null,null,null,null,null,2,null,190,191,192]
["hide","hide"]
[]
[null,null,null,null,"根拠となる資料及び条項等"]
[null,"（8）実験動物が日常的な行動を容易に行うことができる施設で飼養保管されているか？","根拠となる資料及び条項等",null,null,null,null,null,null,null,null,null,null,null,null,null,null,null,null,null,null,null,null,null,null,3]
[]
[null,null,null,null,"判断理由、改善の見通し"]
[null,"（8）実験動物が日常的な行動を容易に行うことができる施設で飼養保管されているか？","判断理由、改善の見通し",null,null,null,null,null,null,null,null,null,null,null,null,null,null,null,null,null,null,null,null,null,null,3]
[]
[]
[null,"（９）",null,null,"飼育スペース（ケージサイズ）の推奨値を設定しているか？"]
[null,null,null,null,"（厚労省基本指針第6、飼養保管基準第3.1(2)ア）"]
[]
[null,null,null,null,null,"はい",null,null,"一部改善すべき点がある",null,null,null,null,null,null,null,"いいえ",null,null,null,null,null,null,null,null,2,null,194,195,196]
[]
["hide","hide",null,null,"検証の結果"]
["hide","hide",null,null,null,"はい",null,null,"一部改善すべき点がある",null,null,null,null,null,null,null,"いいえ",null,null,null,null,null,null,null,null,2,null,198,199,200]
["hide","hide"]
[]
[null,null,null,null,"根拠となる資料及び条項等"]
[null,"（9）飼育スペース（ケージサイズ）の推奨値を設定しているか？","根拠となる資料及び条項等",null,null,null,null,null,null,null,null,null,null,null,null,null,null,null,null,null,null,null,null,null,null,3]
[]
[null,null,null,null,"判断理由、改善の見通し"]
[null,"（9）飼育スペース（ケージサイズ）の推奨値を設定しているか？","判断理由、改善の見通し",null,null,null,null,null,null,null,null,null,null,null,null,null,null,null,null,null,null,null,null,null,null,3]
[]
[]
[null,"（１０）",null,null,"環境エンリッチメントを実施しているか？"]
[null,null,null,null,"（厚労省基本指針第6、飼養保管基準第3.1(2)イ）"]
[]
[null,null,null,null,null,"はい",null,null,"いいえ",null,null,null,null,null,null,null,null,null,null,null,null,null,null,null,null,2,null,210,212]
[]
["hide","hide",null,null,"検証の結果"]
["hide","hide",null,null,null,"はい",null,null,"いいえ",null,null,null,null,null,null,null,null,null,null,null,null,null,null,null,null,2,null,214,216]
["hide","hide"]
[]
[null,null,null,null,"実施している動物種："]
[null,null,null,null,null,"霊長類　　（動物名　↓）",null,null,null,null,null,null,null,null,null,null,null,null,null,null,null,null,null,null,null,1,218,null,null,null,null,null,false]
[null,"実施している動物種：","霊長類（動物名：　　　　　　　　）",null,null,null,null,null,null,null,null,null,null,null,null,null,null,null,null,null,null,null,null,null,null,3]
[null,null,null,null,null,"イヌ",null,null,null,null,null,null,null,null,null,null,null,null,null,null,null,null,null,null,null,1,222,null,null,null,null,null,false]
[null,null,null,null,null,"ネコ",null,null,null,null,null,null,null,null,null,null,null,null,null,null,null,null,null,null,null,1,224,null,null,null,null,null,false]
[null,null,null,null,null,"うさぎ",null,null,null,null,null,null,null,null,null,null,null,null,null,null,null,null,null,null,null,1,226,null,null,null,null,null,false]
[null,null,null,null,null,"ラット",null,null,null,null,null,null,null,null,null,null,null,null,null,null,null,null,null,null,null,1,227,null,null,null,null,null,false]
[null,null,null,null,null,"マウス",null,null,null,null,null,null,null,null,null,null,null,null,null,null,null,null,null,null,null,1,228,null,null,null,null,null,false]
[null,null,null,null,null,"その他",null,null,null,null,null,null,null,null,null,null,null,null,null,null,null,null,null,null,null,1,230,null,null,null,null,null,false]
[null,"実施している動物種：","その他",null,null,null,null,null,null,null,null,null,null,null,null,null,null,null,null,null,null,null,null,null,null,3]
[]
["hide",null,null,null,"検証の結果"]
["hide",null,null,null,"実施している動物種："]
["hide",null,null,null,null,"霊長類　　（動物名　↓）",null,null,null,null,null,null,null,null,null,null,null,null,null,null,null,null,null,null,null,1,231,null,null,null,null,null,false]
["hide","実施している動物種：","霊長類（動物名：　　　　　　　　）",null,null,null,null,null,null,null,null,null,null,null,null,null,null,null,null,null,null,null,null,null,null,3]
["hide",null,null,null,null,"イヌ",null,null,null,null,null,null,null,null,null,null,null,null,null,null,null,null,null,null,null,1,232,null,null,null,null,null,false]
["hide",null,null,null,null,"ネコ",null,null,null,null,null,null,null,null,null,null,null,null,null,null,null,null,null,null,null,1,233,null,null,null,null,null,false]
["hide",null,null,null,null,"うさぎ",null,null,null,null,null,null,null,null,null,null,null,null,null,null,null,null,null,null,null,1,234,null,null,null,null,null,false]
["hide",null,null,null,null,"ラット",null,null,null,null,null,null,null,null,null,null,null,null,null,null,null,null,null,null,null,1,235,null,null,null,null,null,false]
["hide",null,null,null,null,"マウス",null,null,null,null,null,null,null,null,null,null,null,null,null,null,null,null,null,null,null,1,236,null,null,null,null,null,false]
["hide",null,null,null,null,"その他",null,null,null,null,null,null,null,null,null,null,null,null,null,null,null,null,null,null,null,1,237,null,null,null,null,null,false]
["hide","実施している動物種：","その他",null,null,null,null,null,null,null,null,null,null,null,null,null,null,null,null,null,null,null,null,null,null,3]
[]
[]
[null,null,null,null,"実施している頻度"]
[null,null,null,null,null,"常時",null,null,null,null,null,null,null,null,null,null,null,null,null,null,null,null,null,null,null,2,null,238,239]
[]
[null,null,null,null,null,"時々　（頻度　↓）"]
[null,"（10）環境エンリッチメントを実施しているか？","実施している頻度",null,null,null,null,null,null,null,null,null,null,null,null,null,null,null,null,null,null,null,null,null,null,3]
[]
["hide",null,null,null,"検証の結果"]
["hide",null,null,null,"実施している頻度"]
["hide"]
["hide",null,null,null,null,"常時",null,null,null,null,null,null,null,null,null,null,null,null,null,null,null,null,null,null,null,2,null,250,251]
["hide"]
["hide",null,null,null,null,"時々　（頻度　↓）"]
["hide","（10）環境エンリッチメントを実施しているか？","実施している頻度",null,null,null,null,null,null,null,null,null,null,null,null,null,null,null,null,null,null,null,null,null,null,3]
[]
[null,null,null,null,"実施している内容："]
[null,null,null,null,null,"休息場所、高台",null,null,null,null,null,null,null,null,null,null,null,null,null,null,null,null,null,null,null,1,253,null,null,null,null,null,false]
[null,null,null,null,null,"玩具",null,null,null,null,null,null,null,null,null,null,null,null,null,null,null,null,null,null,null,1,254,null,null,null,null,null,false]
[null,null,null,null,null,"隠れ家・巣箱",null,null,null,null,null,null,null,null,null,null,null,null,null,null,null,null,null,null,null,1,255,null,null,null,null,null,false]
[null,null,null,null,null,"営巣材",null,null,null,null,null,null,null,null,null,null,null,null,null,null,null,null,null,null,null,1,256,null,null,null,null,null,false]
[null,null,null,null,null,"木片・かじり棒",null,null,null,null,null,null,null,null,null,null,null,null,null,null,null,null,null,null,null,1,257,null,null,null,null,null,false]
[null,null,null,null,null,"その他",null,null,null,null,null,null,null,null,null,null,null,null,null,null,null,null,null,null,null,1,258,null,null,null,null,null,false]
[null,"実施している内容：","その他",null,null,null,null,null,null,null,null,null,null,null,null,null,null,null,null,null,null,null,null,null,null,3]
[]
["hide",null,null,null,"検証の結果"]
["hide",null,null,null,null,"休息場所、高台",null,null,null,null,null,null,null,null,null,null,null,null,null,null,null,null,null,null,null,1,265,null,null,null,null,null,false]
["hide",null,null,null,null,"玩具",null,null,null,null,null,null,null,null,null,null,null,null,null,null,null,null,null,null,null,1,266,null,null,null,null,null,false]
["hide",null,null,null,null,"隠れ家・巣箱",null,null,null,null,null,null,null,null,null,null,null,null,null,null,null,null,null,null,null,1,267,null,null,null,null,null,false]
["hide",null,null,null,null,"営巣材",null,null,null,null,null,null,null,null,null,null,null,null,null,null,null,null,null,null,null,1,268,null,null,null,null,null,false]
["hide",null,null,null,null,"木片・かじり棒",null,null,null,null,null,null,null,null,null,null,null,null,null,null,null,null,null,null,null,1,269,null,null,null,null,null,false]
["hide",null,null,null,null,"その他",null,null,null,null,null,null,null,null,null,null,null,null,null,null,null,null,null,null,null,1,270,null,null,null,null,null,false]
["hide","実施している内容：","その他",null,null,null,null,null,null,null,null,null,null,null,null,null,null,null,null,null,null,null,null,null,null,3]
[]
[null,null,null,null,"根拠となる資料及び条項等"]
[null,"（10）環境エンリッチメントを実施しているか？","根拠となる資料及び条項等",null,null,null,null,null,null,null,null,null,null,null,null,null,null,null,null,null,null,null,null,null,null,3]
[]
[null,null,null,null,"判断理由、改善の見通し"]
[null,"（10）環境エンリッチメントを実施しているか？","判断理由、改善の見通し",null,null,null,null,null,null,null,null,null,null,null,null,null,null,null,null,null,null,null,null,null,null,3]
[]
[]
[null,"（１１）",null,null,"適切な温度、湿度、換気、明るさを保つことができる構造の施設で飼養保管しているか？"]
[null,null,null,null,"（厚労省基本指針第6、飼養保管基準第3.1(2)イ）"]
[]
[null,null,null,null,null,"はい",null,null,"一部改善すべき点がある",null,null,null,null,null,null,null,"いいえ",null,null,null,null,null,null,null,null,2,null,271,272,273]
[]
["hide","hide",null,null,"検証の結果"]
["hide","hide",null,null,null,"はい",null,null,"一部改善すべき点がある",null,null,null,null,null,null,null,"いいえ",null,null,null,null,null,null,null,null,2,null,275,276,277]
["hide","hide"]
[]
[null,null,null,null,"根拠となる資料及び条項等"]
[null,"（11）適切な温度、湿度、換気、明るさを保つことができる構造の施設で飼養保管しているか？","根拠となる資料及び条項等",null,null,null,null,null,null,null,null,null,null,null,null,null,null,null,null,null,null,null,null,null,null,3]
[]
[null,null,null,null,"判断理由、改善の見通し"]
[null,"（11）適切な温度、湿度、換気、明るさを保つことができる構造の施設で飼養保管しているか？","判断理由、改善の見通し",null,null,null,null,null,null,null,null,null,null,null,null,null,null,null,null,null,null,null,null,null,null,3]
[]
[]
[null,"（１２）",null,null,"清掃・消毒が容易である等、衛生状態の維持・管理が容易であり、実験動物が"]
[null,null,null,null,"傷害等を受けるおそれがない構造の施設で飼養保管しているか？"]
[null,null,null,null,"（厚労省基本指針第6、飼養保管基準第3.1(2)ウ）"]
[]
[null,null,null,null,null,"はい",null,null,"一部改善すべき点がある",null,null,null,null,null,null,null,"いいえ",null,null,null,null,null,null,null,null,2,null,295,296,297]
[]
["hide","hide",null,null,"検証の結果"]
["hide","hide",null,null,null,"はい",null,null,"一部改善すべき点がある",null,null,null,null,null,null,null,"いいえ",null,null,null,null,null,null,null,null,2,null,299,300,301]
["hide","hide"]
[]
[null,null,null,null,"根拠となる資料及び条項等"]
[null,"（12）清掃・消毒が容易である等、衛生状態の維持・管理が容易であり、実験動物が傷害等を受けるおそれがない構造の施設で飼養保管しているか？","根拠となる資料及び条項等",null,null,null,null,null,null,null,null,null,null,null,null,null,null,null,null,null,null,null,null,null,null,3]
[]
[null,null,null,null,"判断理由、改善の見通し"]
[null,"（12）清掃・消毒が容易である等、衛生状態の維持・管理が容易であり、実験動物が傷害等を受けるおそれがない構造の施設で飼養保管しているか？","判断理由、改善の見通し",null,null,null,null,null,null,null,null,null,null,null,null,null,null,null,null,null,null,null,null,null,null,3]
[]
[]
[null,"（１３）",null,null,"実験動物の逃亡防止策の実施、および施設外に逸走したとき場合の対応等について"]
[null,null,null,null,"定めているか？（厚労省基本指針第6、飼養保管基準第3.3(3)） "]
[]
[null,null,null,null,null,"はい",null,null,"一部改善すべき点がある",null,null,null,null,null,null,null,"いいえ",null,null,null,null,null,null,null,null,2,null,303,304,305]
[]
["hide","hide",null,null,"検証の結果"]
["hide","hide",null,null,null,"はい",null,null,"一部改善すべき点がある",null,null,null,null,null,null,null,"いいえ",null,null,null,null,null,null,null,null,2,null,307,308,309]
["hide","hide"]
[]
[null,null,null,null,"根拠となる資料及び条項等"]
[null,"（13）実験動物の逃亡防止策の実施、および施設外に逸走したとき場合の対応等について定めているか？","根拠となる資料及び条項等",null,null,null,null,null,null,null,null,null,null,null,null,null,null,null,null,null,null,null,null,null,null,3]
[]
[null,null,null,null,"判断理由、改善の見通し"]
[null,"（13）実験動物の逃亡防止策の実施、および施設外に逸走したとき場合の対応等について定めているか？","判断理由、改善の見通し",null,null,null,null,null,null,null,null,null,null,null,null,null,null,null,null,null,null,null,null,null,null,3]
[]
[]
[null,"（１４）",null,null,"実験動物の汚物処理、微生物等による環境の汚染、悪臭・害虫の発生および騒音防止に"]
[null,null,null,null,"配慮しているか？（厚労省基本指針第6、飼養保管基準第3.2）"]
[]
[null,null,null,null,null,"はい",null,null,"一部改善すべき点がある",null,null,null,null,null,null,null,"いいえ",null,null,null,null,null,null,null,null,2,null,311,312,313]
[]
["hide","hide",null,null,"検証の結果"]
["hide","hide",null,null,null,"はい",null,null,"一部改善すべき点がある",null,null,null,null,null,null,null,"いいえ",null,null,null,null,null,null,null,null,2,null,315,316,317]
["hide","hide"]
[]
[null,null,null,null,"根拠となる資料及び条項等"]
[null,"（14）実験動物の汚物処理、微生物等による環境の汚染、悪臭・害虫の発生および騒音防止に配慮しているか？","根拠となる資料及び条項等",null,null,null,null,null,null,null,null,null,null,null,null,null,null,null,null,null,null,null,null,null,null,3]
[]
[null,null,null,null,"判断理由、改善の見通し"]
[null,"（14）実験動物の汚物処理、微生物等による環境の汚染、悪臭・害虫の発生および騒音防止に配慮しているか？","判断理由、改善の見通し",null,null,null,null,null,null,null,null,null,null,null,null,null,null,null,null,null,null,null,null,null,null,3]
[]
[]
[null,"（１５）",null,null,"実験実施者および飼養者が危険を伴うことなく作業できる施設の構造および飼養または"]
[null,null,null,null,"保管の方法を整備しているか？（厚労省基本指針第6、飼養保管基準第3.3(1)ウ）"]
[]
[null,null,null,null,null,"はい",null,null,"一部改善すべき点がある",null,null,null,null,null,null,null,"いいえ",null,null,null,null,null,null,null,null,2,null,319,320,321]
[]
["hide","hide",null,null,"検証の結果"]
["hide","hide",null,null,null,"はい",null,null,"一部改善すべき点がある",null,null,null,null,null,null,null,"いいえ",null,null,null,null,null,null,null,null,2,null,323,324,325]
["hide","hide"]
[]
[null,null,null,null,"根拠となる資料及び条項等"]
[null,"（15）実験実施者および飼養者が危険を伴うことなく作業できる施設の構造および飼養または保管の方法を整備しているか？","根拠となる資料及び条項等",null,null,null,null,null,null,null,null,null,null,null,null,null,null,null,null,null,null,null,null,null,null,3]
[]
[null,null,null,null,"判断理由、改善の見通し"]
[null,"（15）実験実施者および飼養者が危険を伴うことなく作業できる施設の構造および飼養または保管の方法を整備しているか？","判断理由、改善の見通し",null,null,null,null,null,null,null,null,null,null,null,null,null,null,null,null,null,null,null,null,null,null,3]
[]
[]
[null,"（１６）",null,null,"実験動物に由来する人の疾病の予防のための健康管理を行っているか？"]
[null,null,null,null,"（厚労省基本指針第6、飼養保管基準第3.3(1)イ）"]
[]
[null,null,null,null,null,"はい",null,null,"一部改善すべき点がある",null,null,null,null,null,null,null,"いいえ",null,null,null,null,null,null,null,null,2,null,327,328,329]
[]
["hide","hide",null,null,"検証の結果"]
["hide","hide",null,null,null,"はい",null,null,"一部改善すべき点がある",null,null,null,null,null,null,null,"いいえ",null,null,null,null,null,null,null,null,2,null,331,332,333]
["hide","hide"]
[]
[null,null,null,null,"以下の疾病や事故が飼育施設内で発生したか？"]
[null,null,null,null,null,"動物由来感染症の発生",null,null,null,null,null,null,null,null,null,null,null,null,null,null,null,null,null,null,null,1,335,null,null,null,null,null,false]
[null,null,null,null,null,"動物アレルギーによるアナフィラキシーショック",null,null,null,null,null,null,null,null,null,null,null,null,null,null,null,null,null,null,null,1,336,null,null,null,null,null,false]
[null,null,null,null,null,"注射針の針刺し",null,null,null,null,null,null,null,null,null,null,null,null,null,null,null,null,null,null,null,1,337,null,null,null,null,null,false]
[null,null,null,null,null,"動物が原因による外傷の発生（咬傷など）",null,null,null,null,null,null,null,null,null,null,null,null,null,null,null,null,null,null,null,1,338,null,null,null,null,null,false]
[null,null,null,null,null,"転倒などの怪我",null,null,null,null,null,null,null,null,null,null,null,null,null,null,null,null,null,null,null,1,339,null,null,null,null,null,false]
[null,null,null,null,null,"特定化学物質・有機溶剤・電離放射線による障害",null,null,null,null,null,null,null,null,null,null,null,null,null,null,null,null,null,null,null,1,340,null,null,null,null,null,false]
[null,null,null,null,null,"その他",null,null,null,null,null,null,null,null,null,null,null,null,null,null,null,null,null,null,null,1,342,null,null,null,null,null,false]
[null,"以下の疾病や事故が飼育施設内で発生したか？","その他",null,null,null,null,null,null,null,null,null,null,null,null,null,null,null,null,null,null,null,null,null,null,3]
[]
["hide","hide",null,null,"検証の結果"]
["hide",null,null,null,null,"動物由来感染症の発生",null,null,null,null,null,null,null,null,null,null,null,null,null,null,null,null,null,null,null,1,350,null,null,null,null,null,false]
["hide",null,null,null,null,"動物アレルギーによるアナフィラキシーショック",null,null,null,null,null,null,null,null,null,null,null,null,null,null,null,null,null,null,null,1,351,null,null,null,null,null,false]
["hide",null,null,null,null,"注射針の針刺し",null,null,null,null,null,null,null,null,null,null,null,null,null,null,null,null,null,null,null,1,352,null,null,null,null,null,false]
["hide",null,null,null,null,"動物が原因による外傷の発生（咬傷など）",null,null,null,null,null,null,null,null,null,null,null,null,null,null,null,null,null,null,null,1,353,null,null,null,null,null,false]
["hide",null,null,null,null,"転倒などの怪我",null,null,null,null,null,null,null,null,null,null,null,null,null,null,null,null,null,null,null,1,354,null,null,null,null,null,false]
["hide",null,null,null,null,"特定化学物質・有機溶剤・電離放射線による障害",null,null,null,null,null,null,null,null,null,null,null,null,null,null,null,null,null,null,null,1,355,null,null,null,null,null,false]
["hide",null,null,null,null,"その他",null,null,null,null,null,null,null,null,null,null,null,null,null,null,null,null,null,null,null,1,356,null,null,null,null,null,false]
["hide","以下の疾病や事故が飼育施設内で発生したか？","その他",null,null,null,null,null,null,null,null,null,null,null,null,null,null,null,null,null,null,null,null,null,null,3]
[]
[null,null,null,null,"根拠となる資料及び条項等"]
[null,"（16）実験動物に由来する人の疾病の予防のための健康管理を行っているか？","根拠となる資料及び条項等",null,null,null,null,null,null,null,null,null,null,null,null,null,null,null,null,null,null,null,null,null,null,3]
[]
[null,null,null,null,"判断理由、改善の見通し"]
[null,"（16）実験動物に由来する人の疾病の予防のための健康管理を行っているか？","判断理由、改善の見通し",null,null,null,null,null,null,null,null,null,null,null,null,null,null,null,null,null,null,null,null,null,null,3]
[]
[]
[null,"（１７）",null,null,"実験動物管理者は、施設の日常的な管理及び保守点検、並びに実験動物の数及び"]
[null,null,null,null,"状態を確認しているか？（厚労省基本指針第6、飼養保管基準第3.3(1)エ）"]
[]
[null,null,null,null,null,"はい",null,null,"一部改善すべき点がある",null,null,null,null,null,null,null,"いいえ",null,null,null,null,null,null,null,null,2,null,357,358,359]
[]
["hide","hide",null,null,"検証の結果"]
["hide","hide",null,null,null,"はい",null,null,"一部改善すべき点がある",null,null,null,null,null,null,null,"いいえ",null,null,null,null,null,null,null,null,2,null,361,362,363]
["hide","hide"]
[]
[null,null,null,null,"根拠となる資料及び条項等"]
[null,"（17）実験動物管理者は、施設の日常的な管理及び保守点検、並びに実験動物の数及び状態を確認しているか？","根拠となる資料及び条項等",null,null,null,null,null,null,null,null,null,null,null,null,null,null,null,null,null,null,null,null,null,null,3]
[]
[null,null,null,null,"判断理由、改善の見通し"]
[null,"（17）実験動物管理者は、施設の日常的な管理及び保守点検、並びに実験動物の数及び状態を確認しているか？","判断理由、改善の見通し",null,null,null,null,null,null,null,null,null,null,null,null,null,null,null,null,null,null,null,null,null,null,3]
[]
[]
[null,"（１８）",null,null,"実験動物の入手先、飼育履歴病歴等に関する記録台帳を整備し、実験動物の記録管理を"]
[null,null,null,null,"適切に行っているか？（厚労省基本指針第6、飼養保管基準第3.5）"]
[]
[null,null,null,null,null,"はい",null,null,"一部改善すべき点がある",null,null,null,null,null,null,null,"いいえ",null,null,null,null,null,null,null,null,2,null,365,366,367]
[]
["hide","hide",null,null,"検証の結果"]
["hide","hide",null,null,null,"はい",null,null,"一部改善すべき点がある",null,null,null,null,null,null,null,"いいえ",null,null,null,null,null,null,null,null,2,null,369,370,371]
["hide","hide"]
[]
[null,null,null,null,"根拠となる資料及び条項等"]
[null,"（18）実験動物の入手先、飼育履歴病歴等に関する記録台帳を整備し、実験動物の記録管理を適切に行っているか？","根拠となる資料及び条項等",null,null,null,null,null,null,null,null,null,null,null,null,null,null,null,null,null,null,null,null,null,null,3]
[]
[null,null,null,null,"判断理由、改善の見通し"]
[null,"（18）実験動物の入手先、飼育履歴病歴等に関する記録台帳を整備し、実験動物の記録管理を適切に行っているか？","判断理由、改善の見通し",null,null,null,null,null,null,null,null,null,null,null,null,null,null,null,null,null,null,null,null,null,null,3]
[]
[]
[null,"（１９）",null,null,"実験動物の飼養保管施設は、関係者以外の者が立ち入らないよう、施設のセキュリティや"]
[null,null,null,null,"入退室の管理がされているか？（厚労省基本指針第6、飼養保管基準第3.3（1）カ）"]
[]
[null,null,null,null,null,"はい",null,null,"一部改善すべき点がある",null,null,null,null,null,null,null,"いいえ",null,null,null,null,null,null,null,null,2,null,373,374,375]
[]
["hide","hide",null,null,"検証の結果"]
["hide","hide",null,null,null,"はい",null,null,"一部改善すべき点がある",null,null,null,null,null,null,null,"いいえ",null,null,null,null,null,null,null,null,2,null,377,378,379]
["hide","hide"]
[]
[null,null,null,null,"根拠となる資料及び条項等"]
[null,"（19）実験動物の飼養保管施設は、関係者以外の者が立ち入らないよう、施設のセキュリティや入退室の管理がされているか？","根拠となる資料及び条項等",null,null,null,null,null,null,null,null,null,null,null,null,null,null,null,null,null,null,null,null,null,null,3]
[]
[null,null,null,null,"判断理由、改善の見通し"]
[null,"（19）実験動物の飼養保管施設は、関係者以外の者が立ち入らないよう、施設のセキュリティや入退室の管理がされているか？","判断理由、改善の見通し",null,null,null,null,null,null,null,null,null,null,null,null,null,null,null,null,null,null,null,null,null,null,3]
[]
[]
[null,"（２０）",null,null,"地震、火災等の緊急時の対応を定めているか? "]
[null,null,null,null,"（厚労省基本指針第6、飼養保管基準第3.3（4））"]
[]
[null,null,null,null,null,"はい",null,null,"一部改善すべき点がある",null,null,null,null,null,null,null,"いいえ",null,null,null,null,null,null,null,null,2,null,381,382,383]
[]
["hide","hide",null,null,"検証の結果"]
["hide","hide",null,null,null,"はい",null,null,"一部改善すべき点がある",null,null,null,null,null,null,null,"いいえ",null,null,null,null,null,null,null,null,2,null,385,386,387]
["hide","hide"]
[]
[null,null,null,null,"根拠となる資料及び条項等"]
[null,"（20）地震、火災等の緊急時の対応を定めているか? ","根拠となる資料及び条項等",null,null,null,null,null,null,null,null,null,null,null,null,null,null,null,null,null,null,null,null,null,null,3]
[]
[null,null,null,null,"判断理由、改善の見通し"]
[null,"（20）地震、火災等の緊急時の対応を定めているか? ","判断理由、改善の見通し",null,null,null,null,null,null,null,null,null,null,null,null,null,null,null,null,null,null,null,null,null,null,3]
[]
[]
[null,"（２１）",null,null,"実験動物の飼養保管の飼養保管手順書（SOP）やマニュアルを定めているか？"]
[null,null,null,null,"（厚労省基本指針第6、飼養保管基準第3および4）"]
[]
[null,null,null,null,null,"はい",null,null,"一部改善すべき点がある",null,null,null,null,null,null,null,"いいえ",null,null,null,null,null,null,null,null,2,null,389,390,391]
[]
["hide","hide",null,null,"検証の結果"]
["hide","hide",null,null,null,"はい",null,null,"一部改善すべき点がある",null,null,null,null,null,null,null,"いいえ",null,null,null,null,null,null,null,null,2,null,393,394,395]
["hide","hide"]
[]
[null,null,null,null,"飼養保管手順書、マニュアル等に含まれる項目："]
[null,null,null,null,null,"動物の搬入、検疫、隔離飼育等",null,null,null,null,null,null,null,null,null,null,null,null,null,null,null,null,null,null,null,1,397,null,null,null,null,null,false]
[null,null,null,null,null,"飼育環境への順化又は順応",null,null,null,null,null,null,null,null,null,null,null,null,null,null,null,null,null,null,null,1,398,null,null,null,null,null,false]
[null,null,null,null,null,"飼育室の環境条件（適切な温度、湿度、換気、明るさ等）",null,null,null,null,null,null,null,null,null,null,null,null,null,null,null,null,null,null,null,1,399,null,null,null,null,null,false]
[null,null,null,null,null,"飼育管理の方法",null,null,null,null,null,null,null,null,null,null,null,null,null,null,null,null,null,null,null,1,400,null,null,null,null,null,false]
[null,null,null,null,null,"健康管理の方法",null,null,null,null,null,null,null,null,null,null,null,null,null,null,null,null,null,null,null,1,401,null,null,null,null,null,false]
[null,null,null,null,null,"動物の繁殖に関する取り決め",null,null,null,null,null,null,null,null,null,null,null,null,null,null,null,null,null,null,null,1,402,null,null,null,null,null,false]
[null,null,null,null,null,"逸走防止措置と逸走時の対応",null,null,null,null,null,null,null,null,null,null,null,null,null,null,null,null,null,null,null,1,403,null,null,null,null,null,false]
[null,null,null,null,null,"廃棄物処理",null,null,null,null,null,null,null,null,null,null,null,null,null,null,null,null,null,null,null,1,404,null,null,null,null,null,false]
[null,null,null,null,null,"環境の汚染及び悪臭、害虫の発生等の防止",null,null,null,null,null,null,null,null,null,null,null,null,null,null,null,null,null,null,null,1,405,null,null,null,null,null,false]
[null,null,null,null,null,"騒音の防止",null,null,null,null,null,null,null,null,null,null,null,null,null,null,null,null,null,null,null,1,406,null,null,null,null,null,false]
[null,null,null,null,null,"施設・設備の保守点検",null,null,null,null,null,null,null,null,null,null,null,null,null,null,null,null,null,null,null,1,407,null,null,null,null,null,false]
[null,null,null,null,null,"実験動物の記録管理、記録台帳の整備",null,null,null,null,null,null,null,null,null,null,null,null,null,null,null,null,null,null,null,1,408,null,null,null,null,null,false]
[null,null,null,null,null,"緊急時の連絡",null,null,null,null,null,null,null,null,null,null,null,null,null,null,null,null,null,null,null,1,409,null,null,null,null,null,false]
[null,null,null,null,null,"輸送時の取り扱い方法",null,null,null,null,null,null,null,null,null,null,null,null,null,null,null,null,null,null,null,1,410,null,null,null,null,null,false]
[null,null,null,null,null,"施設等の廃止時の取扱い",null,null,null,null,null,null,null,null,null,null,null,null,null,null,null,null,null,null,null,1,411,null,null,null,null,null,false]
[]
["hide","hide",null,null,"検証の結果"]
["hide",null,null,null,null,"動物の搬入、検疫、隔離飼育等",null,null,null,null,null,null,null,null,null,null,null,null,null,null,null,null,null,null,null,1,413,null,null,null,null,null,false]
["hide",null,null,null,null,"飼育環境への順化又は順応",null,null,null,null,null,null,null,null,null,null,null,null,null,null,null,null,null,null,null,1,414,null,null,null,null,null,false]
["hide",null,null,null,null,"飼育室の環境条件（適切な温度、湿度、換気、明るさ等）",null,null,null,null,null,null,null,null,null,null,null,null,null,null,null,null,null,null,null,1,415,null,null,null,null,null,false]
["hide",null,null,null,null,"飼育管理の方法",null,null,null,null,null,null,null,null,null,null,null,null,null,null,null,null,null,null,null,1,416,null,null,null,null,null,false]
["hide",null,null,null,null,"健康管理の方法",null,null,null,null,null,null,null,null,null,null,null,null,null,null,null,null,null,null,null,1,417,null,null,null,null,null,false]
["hide",null,null,null,null,"動物の繁殖に関する取り決め",null,null,null,null,null,null,null,null,null,null,null,null,null,null,null,null,null,null,null,1,418,null,null,null,null,null,false]
["hide",null,null,null,null,"逸走防止措置と逸走時の対応",null,null,null,null,null,null,null,null,null,null,null,null,null,null,null,null,null,null,null,1,419,null,null,null,null,null,false]
["hide",null,null,null,null,"廃棄物処理",null,null,null,null,null,null,null,null,null,null,null,null,null,null,null,null,null,null,null,1,420,null,null,null,null,null,false]
["hide",null,null,null,null,"環境の汚染及び悪臭、害虫の発生等の防止",null,null,null,null,null,null,null,null,null,null,null,null,null,null,null,null,null,null,null,1,421,null,null,null,null,null,false]
["hide",null,null,null,null,"騒音の防止",null,null,null,null,null,null,null,null,null,null,null,null,null,null,null,null,null,null,null,1,422,null,null,null,null,null,false]
["hide",null,null,null,null,"施設・設備の保守点検",null,null,null,null,null,null,null,null,null,null,null,null,null,null,null,null,null,null,null,1,423,null,null,null,null,null,false]
["hide",null,null,null,null,"実験動物の記録管理、記録台帳の整備",null,null,null,null,null,null,null,null,null,null,null,null,null,null,null,null,null,null,null,1,424,null,null,null,null,null,false]
["hide",null,null,null,null,"緊急時の連絡",null,null,null,null,null,null,null,null,null,null,null,null,null,null,null,null,null,null,null,1,425,null,null,null,null,null,false]
["hide",null,null,null,null,"輸送時の取り扱い方法",null,null,null,null,null,null,null,null,null,null,null,null,null,null,null,null,null,null,null,1,426,null,null,null,null,null,false]
["hide",null,null,null,null,"施設等の廃止時の取扱い",null,null,null,null,null,null,null,null,null,null,null,null,null,null,null,null,null,null,null,1,427,null,null,null,null,null,false]
[]
[null,null,null,null,"根拠となる資料及び条項等"]
[null,"（21）実験動物の飼養保管の飼養保管手順書（SOP）やマニュアルを定めているか？","根拠となる資料及び条項等",null,null,null,null,null,null,null,null,null,null,null,null,null,null,null,null,null,null,null,null,null,null,3]
[]
[null,null,null,null,"判断理由、改善の見通し"]
[null,"（21）実験動物の飼養保管の飼養保管手順書（SOP）やマニュアルを定めているか？","判断理由、改善の見通し",null,null,null,null,null,null,null,null,null,null,null,null,null,null,null,null,null,null,null,null,null,null,3]
[]
[]
[]
["hide",null,null,null,"改善に向けた意見"]
["hide",{"$f":"$B$1&\" 総括\"","v":"　８． 飼養保管 総括"},"改善に向けた意見",null,"mes",null,null,null,null,null,null,null,null,null,null,null,null,null,null,null,null,null,null,null,null,3]
[]
[]
[]
[null,null,null,null,null,null,null,null,null,null,null,null,null,null,null,null,null,null,null,null,null,null,null,null,null,"e"]

{"sheet":"9","index":12,"n_rows":85,"n_cols":33,"rows_kept":85,"cut":false,"hidden":true,"merged":[[72,5,72,22],[75,5,75,22],[80,5,80,22],[25,5,25,22],[37,5,37,22],[40,5,40,22],[43,5,43,22],[56,5,56,22],[59,5,59,22]]}
[null,"　９． 教育訓練",null,null,null,null,null,null,null,null,null,null,1,22,6]
[]
[null,null,null,null,{"$f":"IF(V1=2,\"（該当無し）\",\"\")","v":""},null,null,null,null,null,null,null,null,null,null,null,null,null,null,null,null,null,null,null,null,"op","chb","opB","opB","opB",null,null,"ans"]
[]
[null,"（１）",null,null,"実施機関の長は、動物実験実施者その他実験動物の飼養又は保管等に携わるものに"]
[null,null,null,null,"対する教育訓練を実施しているか？（厚労省基本指針第2.6、飼養保管基準第3.4）"]
[]
[null,null,null,null,null,"はい",null,null,"一部改善すべき点がある",null,null,null,null,null,null,null,"いいえ",null,null,null,null,null,null,null,null,2,null,3,4,5]
[]
["hide",null,null,null,"検証の結果"]
["hide",null,null,null,null,"はい",null,null,"一部改善すべき点がある",null,null,null,null,null,null,null,"いいえ",null,null,null,null,null,null,null,null,2,null,7,8,9]
["hide"]
[]
[]
[null,"（２）",null,null,"教育訓練に含まれる項目："]
[]
[null,null,null,null,null,"法令等、機関内規程等",null,null,null,null,null,null,null,null,null,null,null,null,null,null,null,null,null,null,null,1,11,null,null,null,null,null,false]
[null,null,null,null,null,"動物実験の方法及び実験動物の取扱に関する事項",null,null,null,null,null,null,null,null,null,null,null,null,null,null,null,null,null,null,null,1,12,null,null,null,null,null,false]
[null,null,null,null,null,"苦痛分類および人道的エンドポイント",null,null,null,null,null,null,null,null,null,null,null,null,null,null,null,null,null,null,null,1,13,null,null,null,null,null,false]
[null,null,null,null,null,"苦痛の軽減法（麻酔法など）",null,null,null,null,null,null,null,null,null,null,null,null,null,null,null,null,null,null,null,1,14,null,null,null,null,null,false]
[null,null,null,null,null,"実験動物の飼養保管に関する事項",null,null,null,null,null,null,null,null,null,null,null,null,null,null,null,null,null,null,null,1,15,null,null,null,null,null,false]
[null,null,null,null,null,"安全確保、安全管理に関する事項",null,null,null,null,null,null,null,null,null,null,null,null,null,null,null,null,null,null,null,1,16,null,null,null,null,null,false]
[null,null,null,null,null,"人獣共通感染症に関する事項",null,null,null,null,null,null,null,null,null,null,null,null,null,null,null,null,null,null,null,1,17,null,null,null,null,null,false]
[null,null,null,null,null,"施設等の利用に関する事項",null,null,null,null,null,null,null,null,null,null,null,null,null,null,null,null,null,null,null,1,18,null,null,null,null,null,false]
[null,null,null,null,null,"その他",null,null,null,null,null,null,null,null,null,null,null,null,null,null,null,null,null,null,null,1,19,null,null,null,null,null,false]
[null,"教育訓練に含まれる項目：","その他（　　　　　　　　　　　　　） ",null,null,null,null,null,null,null,null,null,null,null,null,null,null,null,null,null,null,null,null,null,null,3]
[]
["hide",null,null,null,"検証の結果"]
["hide",null,null,null,null,"法令等、機関内規程等",null,null,null,null,null,null,null,null,null,null,null,null,null,null,null,null,null,null,null,1,20,null,null,null,null,null,false]
["hide",null,null,null,null,"動物実験の方法及び実験動物の取扱に関する事項",null,null,null,null,null,null,null,null,null,null,null,null,null,null,null,null,null,null,null,1,21,null,null,null,null,null,false]
["hide",null,null,null,null,"苦痛分類および人道的エンドポイント",null,null,null,null,null,null,null,null,null,null,null,null,null,null,null,null,null,null,null,1,22,null,null,null,null,null,false]
["hide",null,null,null,null,"苦痛の軽減法（麻酔法など）",null,null,null,null,null,null,null,null,null,null,null,null,null,null,null,null,null,null,null,1,23,null,null,null,null,null,false]
["hide",null,null,null,null,"実験動物の飼養保管に関する事項",null,null,null,null,null,null,null,null,null,null,null,null,null,null,null,null,null,null,null,1,24,null,null,null,null,null,false]
["hide",null,null,null,null,"安全確保、安全管理に関する事項",null,null,null,null,null,null,null,null,null,null,null,null,null,null,null,null,null,null,null,1,25,null,null,null,null,null,false]
["hide",null,null,null,null,"人獣共通感染症に関する事項",null,null,null,null,null,null,null,null,null,null,null,null,null,null,null,null,null,null,null,1,26,null,null,null,null,null,false]
["hide",null,null,null,null,"施設等の利用に関する事項",null,null,null,null,null,null,null,null,null,null,null,null,null,null,null,null,null,null,null,1,27,null,null,null,null,null,false]
["hide",null,null,null,null,"その他",null,null,null,null,null,null,null,null,null,null,null,null,null,null,null,null,null,null,null,1,28,null,null,null,null,null,false]
["hide","教育訓練に含まれる項目：","その他（　　　　　　　　　　　　　） ",null,null,null,null,null,null,null,null,null,null,null,null,null,null,null,null,null,null,null,null,null,null,3]
[]
[null,null,null,null,"根拠となる資料及び条項等"]
[null,"（2）教育訓練に含まれる項目：","根拠となる資料及び条項等",null,null,null,null,null,null,null,null,null,null,null,null,null,null,null,null,null,null,null,null,null,null,3]
[]
[null,null,null,null,"判断理由、改善の見通し"]
[null,"（2）教育訓練に含まれる項目：","判断理由、改善の見通し",null,null,null,null,null,null,null,null,null,null,null,null,null,null,null,null,null,null,null,null,null,null,3]
[]
[]
[null,"（３）",null,null,"教育訓練の実施記録は保存されているか? （厚労省基本指針第2.6、飼養保管基準第3.4）"]
[null,null,null,null,"（教育訓練の日時、講師の氏名、受講者数、受講者氏名、教材等）"]
[]
[null,null,null,null,null,"はい",null,null,"一部改善すべき点がある",null,null,null,null,null,null,null,"いいえ",null,null,null,null,null,null,null,null,2,null,29,30,31]
[]
["hide",null,null,null,"検証の結果"]
["hide",null,null,null,null,"はい",null,null,"一部改善すべき点がある",null,null,null,null,null,null,null,"いいえ",null,null,null,null,null,null,null,null,2,null,33,34,35]
["hide"]
[]
[null,null,null,null,"根拠となる資料及び条項等"]
[null,"（3）教育訓練の実施記録は保存されているか? ","根拠となる資料及び条項等",null,null,null,null,null,null,null,null,null,null,null,null,null,null,null,null,null,null,null,null,null,null,3]
[]
[null,null,null,null,"判断理由、改善の見通し"]
[null,"（3）教育訓練の実施記録は保存されているか? ","判断理由、改善の見通し",null,null,null,null,null,null,null,null,null,null,null,null,null,null,null,null,null,null,null,null,null,null,3]
[]
[]
[null,"（４）",null,null,"実施機関の長は、実験動物に関する知識と経験を有する者を実験動物管理者に充て、"]
[null,null,null,null,"必要な教育訓練の機会を確保しているか？ （飼養保管基準第3.1（3））"]
[]
[null,null,null,null,null,"はい",null,null,"一部改善すべき点がある",null,null,null,null,null,null,null,"いいえ",null,null,null,null,null,null,null,null,2,null,37,38,39]
[]
["hide",null,null,null,"検証の結果"]
["hide",null,null,null,null,"はい",null,null,"一部改善すべき点がある",null,null,null,null,null,null,null,"いいえ",null,null,null,null,null,null,null,null,2,null,41,42,43]
["hide"]
[]
[null,null,null,null,"根拠となる資料及び条項等"]
[null,"（4）実施機関の長は、実験動物に関する知識と経験を有する者を実験動物管理者に充て、必要な教育訓練の機会を確保しているか？ ","根拠となる資料及び条項等",null,null,null,null,null,null,null,null,null,null,null,null,null,null,null,null,null,null,null,null,null,null,3]
[]
[null,null,null,null,"判断理由、改善の見通し"]
[null,"（4）実施機関の長は、実験動物に関する知識と経験を有する者を実験動物管理者に充て、必要な教育訓練の機会を確保しているか？ ","判断理由、改善の見通し",null,null,null,null,null,null,null,null,null,null,null,null,null,null,null,null,null,null,null,null,null,null,3]
[]
[]
[]
["hide",null,null,null,"改善に向けた意見"]
["hide",{"$f":"$B$1&\" 総括\"","v":"　９． 教育訓練 総括"},"改善に向けた意見",null,"mes",null,null,null,null,null,null,null,null,null,null,null,null,null,null,null,null,null,null,null,null,3]
[]
[]
[]
[null,null,null,null,null,null,null,null,null,null,null,null,null,null,null,null,null,null,null,null,null,null,null,null,null,"e"]

{"sheet":"10","index":13,"n_rows":32,"n_cols":33,"rows_kept":32,"cut":false,"hidden":true,"merged":[[19,5,19,22],[22,5,22,22],[27,5,27,22],[10,5,10,22],[16,5,16,22]]}
[null,"　１０． 自己点検",null,null,null,null,null,null,null,null,null,null,1,22,6]
[]
[null,null,null,null,{"$f":"IF(V1=2,\"（該当無し）\",\"\")","v":""},null,null,null,null,null,null,null,null,null,null,null,null,null,null,null,null,null,null,null,null,"op","chb","opB","opB","opB",null,null,"ans"]
[]
[null,"実施機関の長は、基本指針への適合性および飼養保管基準への遵守状況について、"]
[null,null,null,null,"自己点検を行っているか？（厚労省基本指針第2.7）"]
[]
[null,null,null,null,null,"はい",null,null,"一部改善すべき点がある",null,null,null,null,null,null,null,"いいえ",null,null,null,null,null,null,null,null,2,null,3,4,5]
[]
[null,null,null,null,"実施している場合はその頻度"]
[null,"（１）実施機関の長は、基本指針への適合性および飼養保管基準への遵守状況について、自己点検を行っているか？","実施している場合はその頻度",null,null,null,null,null,null,null,null,null,null,null,null,null,null,null,null,null,null,null,null,null,null,3]
[]
["hide",null,null,null,"検証の結果"]
["hide",null,null,null,null,"はい",null,null,"一部改善すべき点がある",null,null,null,null,null,null,null,"いいえ",null,null,null,null,null,null,null,null,2,null,7,8,9]
["hide"]
["hide",null,null,null,"実施している場合はその頻度"]
["hide","（１）実施機関の長は、基本指針への適合性および飼養保管基準への遵守状況について、自己点検を行っているか？","実施している場合はその頻度",null,null,null,null,null,null,null,null,null,null,null,null,null,null,null,null,null,null,null,null,null,null,3]
[]
[null,null,null,null,"根拠となる資料及び条項等"]
[null,"（１）実施機関の長は、基本指針への適合性および飼養保管基準への遵守状況について、自己点検を行っているか？","根拠となる資料及び条項等",null,null,null,null,null,null,null,null,null,null,null,null,null,null,null,null,null,null,null,null,null,null,3]
[]
[null,null,null,null,"判断理由、改善の見通し"]
[null,"（１）実施機関の長は、基本指針への適合性および飼養保管基準への遵守状況について、自己点検を行っているか？","判断理由、改善の見通し",null,null,null,null,null,null,null,null,null,null,null,null,null,null,null,null,null,null,null,null,null,null,3]
[]
[]
[]
["hide",null,null,null,"改善に向けた意見"]
["hide",{"$f":"$B$1&\" 総括\"","v":"　１０． 自己点検 総括"},"改善に向けた意見",null,"mes",null,null,null,null,null,null,null,null,null,null,null,null,null,null,null,null,null,null,null,null,3]
[]
[]
[]
[null,null,null,null,null,null,null,null,null,null,null,null,null,null,null,null,null,null,null,null,null,null,null,null,null,"e"]

{"sheet":"11","index":14,"n_rows":41,"n_cols":33,"rows_kept":41,"cut":false,"hidden":true,"merged":[[19,5,19,22],[25,5,25,22],[28,5,28,22],[31,5,31,22],[36,5,36,22]]}
[null,"　１１． 情報公開",null,null,null,null,null,null,null,null,null,null,1,22,6]
[]
[null,null,null,null,{"$f":"IF(V1=2,\"（該当無し）\",\"\")","v":""},null,null,null,null,null,null,null,null,null,null,null,null,null,null,null,null,null,null,null,null,"op","chb","opB","opB","opB",null,null,"ans"]
[]
[null,"（１）",null,null,"基本指針への適合性に関する自己点検・評価、あるいは動物実験等に関する情報を、"]
[null,null,null,null,"適切な方法により公開しているか？（厚労省基本指針第2.8）"]
[]
[null,null,null,null,null,"はい",null,null,"一部改善すべき点がある",null,null,null,null,null,null,null,"いいえ",null,null,null,null,null,null,null,null,2,null,3,4,5]
[]
["hide",null,null,null,"検証の結果"]
["hide",null,null,null,null,"はい",null,null,"一部改善すべき点がある",null,null,null,null,null,null,null,"いいえ",null,null,null,null,null,null,null,null,2,null,7,8,9]
["hide"]
[]
[]
[null,"（２）",null,null,"情報公開を行っている項目を選択："]
[]
[null,null,null,null,null,"機関内規程",null,null,null,null,null,null,null,null,null,null,null,null,null,null,null,null,null,null,null,1,11,null,null,null,null,null,false]
[null,null,null,null,null,"自己点検・評価の結果",null,null,null,null,null,null,null,null,null,null,null,null,null,null,null,null,null,null,null,1,12,null,null,null,null,null,false]
[null,null,null,null,null,"その他（公開している項目を記載） ",null,null,null,null,null,null,null,null,null,null,null,null,null,null,null,null,null,null,null,1,13,null,null,null,null,null,false]
[null,"（２）情報公開を行っている項目を選択：","その他（公開している項目を記載） ",null,null,null,null,null,null,null,null,null,null,null,null,null,null,null,null,null,null,null,null,null,null,3]
[]
["hide",null,null,null,"検証の結果"]
["hide",null,null,null,null,"機関内規程",null,null,null,null,null,null,null,null,null,null,null,null,null,null,null,null,null,null,null,1,14,null,null,null,null,null,false]
["hide",null,null,null,null,"自己点検・評価の結果",null,null,null,null,null,null,null,null,null,null,null,null,null,null,null,null,null,null,null,1,15,null,null,null,null,null,false]
["hide",null,null,null,null,"その他（公開している項目を記載） ",null,null,null,null,null,null,null,null,null,null,null,null,null,null,null,null,null,null,null,1,16,null,null,null,null,null,false]
["hide","情報公開を行っている項目を選択：","その他（公開している項目を記載） ",null,null,null,null,null,null,null,null,null,null,null,null,null,null,null,null,null,null,null,null,null,null,3]
[]
[null,null,null,null,"根拠となる資料及び条項等（ホームページの場合はURL）"]
[null,"（2）情報公開を行っている項目を選択：","根拠となる資料及び条項等（ホームページの場合はURL）",null,null,null,null,null,null,null,null,null,null,null,null,null,null,null,null,null,null,null,null,null,null,3]
[]
[null,null,null,null,"判断理由、改善の見通し"]
[null,"（2）情報公開を行っている項目を選択：","判断理由、改善の見通し",null,null,null,null,null,null,null,null,null,null,null,null,null,null,null,null,null,null,null,null,null,null,3]
[]
[]
[]
["hide",null,null,null,"改善に向けた意見"]
["hide",{"$f":"$B$1&\" 総括\"","v":"　１１． 情報公開 総括"},"改善に向けた意見",null,"mes",null,null,null,null,null,null,null,null,null,null,null,null,null,null,null,null,null,null,null,null,3]
[]
[]
[]
[null,null,null,null,null,null,null,null,null,null,null,null,null,null,null,null,null,null,null,null,null,null,null,null,null,"e"]

{"sheet":"12","index":15,"n_rows":27,"n_cols":33,"rows_kept":27,"cut":false,"hidden":true,"merged":[[14,5,14,22],[17,5,17,22],[22,5,22,22]]}
[null,"　１２． 外部委託",null,null,null,null,null,null,null,null,null,null,1,22,6]
[]
[null,null,null,null,{"$f":"IF(V1=2,\"（該当無し）\",\"\")","v":""},null,null,null,null,null,null,null,null,null,null,null,null,null,null,null,null,null,null,null,null,"op","chb","opB","opB","opB","opB",null,"ans"]
[]
[null,"動物実験等を別の機関に委託する場合は、委託先の厚労省基本指針等への遵守状況を確認しているか？"]
[null,null,null,null,"（厚労省基本指針第7.3）"]
[]
[null,null,null,null,null,"はい",null,"  一部改善すべき点がある",null,null,null,null,null,null,"いいえ",null,null," 外部委託は行っていない",null,null,null,null,null,null,null,2,null,3,4,5,6]
[]
["hide",null,null,null,"検証の結果"]
["hide",null,null,null,null,"はい",null,"　一部改善すべき点がある",null,null,null,null,null,null,"いいえ",null,null,"外部委託は行っていない",null,null,null,null,null,null,null,2,null,16,17,18,19]
["hide"]
[]
[null,null,null,null,"根拠となる資料及び条項等"]
[null,"（１）動物実験等を別の機関に委託する場合は、委託先の厚労省基本指針等への遵守状況を確認しているか？","根拠となる資料及び条項等",null,null,null,null,null,null,null,null,null,null,null,null,null,null,null,null,null,null,null,null,null,null,3]
[]
[null,null,null,null,"判断理由、改善の見通し"]
[null,"（１）動物実験等を別の機関に委託する場合は、委託先の厚労省基本指針等への遵守状況を確認しているか？","判断理由、改善の見通し",null,null,null,null,null,null,null,null,null,null,null,null,null,null,null,null,null,null,null,null,null,null,3]
[]
[]
[]
["hide",null,null,null,"改善に向けた意見"]
["hide",{"$f":"$B$1&\" 総括\"","v":"　１２． 外部委託 総括"},"改善に向けた意見",null,"mes",null,null,null,null,null,null,null,null,null,null,null,null,null,null,null,null,null,null,null,null,3]
[]
[]
[]
[null,null,null,null,null,null,null,null,null,null,null,null,null,null,null,null,null,null,null,null,null,null,null,null,null,"e"]

{"sheet":"Entry","index":16,"n_rows":69,"n_cols":15,"rows_kept":69,"cut":false,"hidden":true,"merged":[]}
[null,null,null,null,null,"実施機関の長が明確であるか？（厚労省基本指針第2.1）",null,null,null,null,null,null,1,22,6]
[null,null,null,null,null,"根拠となる資料及び条項等"]
["機関の長",null,{"$f":"IF(F3<>\"\",1,0)","v":0}]
["国立高度先端医療研究センター動物実験規程（第４条、第１２条）",null,{"$f":"IF(F4<>\"\",1,0)","v":0}]
[null,null,0]
["実験動物管理者",null,0]
["国立高度先端医療研究センター動物実験規程（第８条、第９条）、動物実験実施細則（第２条）",null,0]
[null,null,0]
["動物実験責任者",null,0]
["国立高度先端医療研究センター動物実験規程（第６条、第７条、第１０条、第１１条、第１３条、第１４条）国立高度先端医療研究センター研究所動物実験実施細則（全般）",null,0]
[null,null,0]
["動物実験委員会",null,0]
["国立高度先端医療研究センター動物実験規程（第５条）、動物実験実施細則（第２条）",null,0]
[null,null,0]
["国立高度先端医療研究センター動物実験規程、動物実験実施細則に機関の長、実験動物管理者、動物実験責任者、動物実験委員会の責務が明確に記載されている。",null,0]
[null,null,0]
[null,null,0]
[null,null,0]
[null,null,0]
[null,null,0]
[null,null,0]
[null,null,0]
[null,null,0]
[null,null,0]
[null,null,0]
[null,null,0]
[null,null,0]
[null,null,0]
[null,null,0]
[null,null,0]
[null,null,0]
[null,null,{"$f":"SUM(C3:C12)","v":0}]
[null,null,{"$f":"SUM(C13:C31)","v":0}]
[null,null,null,null,null,"転記(イメージ)"]
[null,null,null,null,null,null,20.25]
[]
[]
[]
[]
["《操作説明》"]
["この処理は、自己点検項目のうち、文書入力を必要とする項目の簡易入力を目的とした機能となります。"]
["文書が1行以上になる場合は、この機能を使って入力を行います。"]
["以下の操作に従って入力を行います。"]
[]
["① １行目、２行目は自己点検項目のタイトルです。"]
["② ３行目（白抜き）の部分からが入力フィールドです。"]
["　入力フィールドは、デフォルトで１０行となりますが、それ以上行を必要とする場合は、"]
["　「最大行」ボタンを押下します。（１９行（Excelの高さ制限の限度値）追加されます。）"]
["③ 入力フィールドへ必要な入力を行ったら「転記イメージ」ボタンを押下します。"]
["　転記イメージ欄に入力した内容の記入イメージが表示されます。"]
["④ 転記イメージ欄において内容確認を行い、ＯＫの時は「転記」ボタンを押下することで、"]
["　本来の位置に転記イメージの内容が転記され、転記後に本来の位置に戻ります。"]
[]
["※ この入力は、複数行から自己点検項目の入力項目に変換を行うため、文書の折り返し等で最大行数に満たない場合でも"]
["Ｅｘｃｅｌの許容を超える場合は、自己点検シートに転記できない場合があります。"]
["その場合は、文書を簡略化し許容範囲内にまとめる必要があります。"]
[]
["《入力方法》"]
["① 入力文書が1行に収まる場合は、自己点検入力項目へ直接入力を行います。（この機能の利用有無は任意です。）"]
["② 1行単位に入力し、改行を必要とする場合は次の行に入力を行います。"]
["③ 行間に空白行を添えたい場合は、１行開けて入力を行います。"]
[]
["※ この入力幅は、自己点検シート側の入力幅と同様となります。入力文書が1行に収まらない場合でもそのまま気にせずに"]
["入力を行います。"]
["　⇒ 「転記イメージ」の展開時において行内で自動的に折り返しされます。"]
[]
["実際の入力イメージは、この後のデモンストレーションでご覧ください。"]
["フォーム右上のウィンドウクローズボタン（×）にて終了します。"]
["また、Macの場合は、フォーム左上の赤丸ボタンにて終了します。"]

{"sheet":"tmp","index":17,"n_rows":1,"n_cols":20,"rows_kept":1,"cut":false,"hidden":true,"merged":[]}
[null,null,null,null,null,null,null,true,null,null,null,null,null,null,null,null,null,null,{"$f":"INFO(\"osversion\")","v":"Windows (32-bit) NT 6.02"},true]

{"sheet":"Sheet1","index":18,"n_rows":0,"n_cols":0,"rows_kept":0,"cut":false,"hidden":false,"merged":[]}